Workbook

Sheet AER_revisions (hidden)
A1: AER REVISIONS / BUGS / FUTURE CHANGES
A2: PAGE TO BE HIDDEN ON RELEASE
A4: Version | B4: Date | C4: Description
A6: 2.09 | B6: 170803 | C6: Removed Temperature table from Bottom or AERSURFACE since this table is no longer used. See iSTART temperatures
A7: 2.09.170802 | B7: 170802 | C7: -bug correction-"user not allowed" issues
A8: 2.09.170801 | B8: 170801 | C8: - Add mForceTerrain to force either parallel or elevated terrain to isolate the results of the dispersion modelling outputs - small bug fixes
A9: 2.08.170530 | C9: - Added Ont. MOE methodology for variable heat radiation losses with changes in flared gas MW. - Added processing to the oPROCESSING page to "Add" a secondary modelling results to the the flaring. When modelling flares, the NOSTD control must be used when using the pseudo-parameters. For other sources NOSTD should not be used. Therefore, flares must be modelled separately from other sources. In Alberta, non-routine, upset and emergency flares are not modelled with other cumulative emissions. For routine flaring, flare emissions should be included with other emissions. If the dispersion modelling uses the same receptor grid, the output POSTFILE data time series can be added. The "Add" switch allows the user to specify a POSTFILE output for other sources which is added during run-time processing to form a cumulative concentration. - Updated method to download files from internet - Updated emission factors and entry of emission factors - Added BC MOE Env foliage impact analysis - Added 24h average and annual average calculations - Added technical switch for daily 1h maximum calculation as alternative to maximum hourly average concentration. - Added high-pressure fuel flare-assist. This flare-assist adds fuel additional fuel at high co-flowing momentum - Updated the flare air-assist calculation to account for air required. Thus air-assist is assumed to replace stoichiometric air until satisfied. Air-assist greater than stoichiometric will then degrade combustion. - Added dynamic radiation loss calculation as per MOE calculations
A13: id | B13: Category | C13: Description | D13: Date Entered | E13: Date Corrected | F13: Version Corrected
A14: 1 | B14: lots | C14: ß-version edits | F14: 1.00.008
A15: 2 | B15: Interface | C15: fixed flame length for terrain criteria so no fuel gas plus format and words | D15: 2005-04-17 | E15: 2005-04-17 | F15: 1.00.014
A16: 3 | B16: Interface | C16: a few small errors in summary and formats | D16: 2005-05-26 | E16: 2005-05-26 | F16: 1.00.015
A17: 4 | B17: Interface | C17: use subject zone for dispersion and some format | D17: 2005-06-08 | E17: 2005-06-08 | F17: 1.00.016
A18: 5 | B18: Interface | C18: fuel gas log corrected to 100% conversion not 98% and %format | D18: 2005-12-12 | E18: 2005-12-12 | F18: 1.00.018
A19: 6 | B19: Interface | C19: revised exit parameters to conserve Fb and Fm with T estimated | D19: 2006-04-11 | E19: 2006-04-11 | F19: 1.00.022
A20: 7 | B20: Macro | C20: Added ISCST Complex terrain calculation to SCREEN3.DLL | D20: 2006-07-12 | E20: 2006-07-12 | F20: 1.00.028
A21: 8 | B21: Interface | C21: Fixed buoyancy term | D21: 2006-08-09 | E21: 2006-08-09 | F21: 1.00.030
A22: 9 | B22: Macro | C22: Comparison of ISCST and SCREEN to SCREEN .dll (see comparison isc.xls) | D22: 2006-09-27 | E22: 2006-09-27 | F22: 1.00.032
A23: 10 | B23: Interface | C23: removed site correction | D23: 2006-10-24 | E23: 2006-10-24 | F23: 1.00.034
A24: 11 | B24: Interface | C24: formatting, etc | D24: 2006-11-13 | E24: 2006-11-13 | F24: 1.00.035
A25: 12 | B25: Interface | C25: formatting, etc | D25: 2006-11-14 | E25: 2006-11-14 | F25: 1.00.036
A26: 13 | B26: Macro | C26: documenting macros | D26: 2006-11-14 | E26: 2006-11-14 | F26: 1.00.016M
A27: 14 | B27: Interface | C27: formatting, etc | D27: 2006-11-22 | E27: 2006-11-22 | F27: 1.00.037
A28: 15 | B28: Interface | C28: formatting, etc | D28: 2006-11-24 | E28: 2006-11-24 | F28: 1.00.038
A29: 16 | B29: Interface | C29: formulas corrected | D29: 2006-12-07 | E29: 2006-12-07 | F29: 1.00.041
A30: 17 | B30: Macros | C30: changed spreadsheet ranges to named ranges (except for those on 'screen-model' page) | D30: 2006-12-11 | E30: 2006-12-11 | F30: 1.01.001
A31: 18 | B31: Macros | C31: Changed name of SCREEN3.dll to EUBscreen3.dll | D31: 2006-12-21 | E31: 2006-12-21 | F31: 1.01.002
A32: 19 | B32: Macros | C32: Changed Emboss to use .fullname instead of .URLencodefullname | D32: 2007-01-04 | E32: 2007-01-04 | F32: 1.02.001
A33: 20 | B33: Interface | C33: Corrected formulas in D15, D62, G62 and G66 and format of C62 of Temporary Permit Summary. Corrected formulas in C46 and D46 and format of F49 of Dispersion Modelling. Revised Qualifications. | D33: 2007-01-22 | E33: 2007-01-22 | F33: 1.02.001
A34: 21 | B34: Interface | C34: numerous minor format changes, some equations changed with limits placed on variables but will not change predictions | D34: 2007-03-14 | E34: 2007-03-14 | F34: 1.03.001
A35: 22 | B35: Interface | C35: added CO and NH3, several formatting and word changes | D35: 2008-10-27 | E35: 2008-10-27 | F35: 1.03.001
A36: 23 | B36: Interface | C36: several formatting and word changes | D36: 2008-11-17 | E36: 2008-11-17 | F36: 1.03.001
A37: 24 | B37: Interface | C37: several formatting and word changes | D37: 2009-08-24 | E37: 2009-08-24 | F37: 1.03.001
A38: 25 | B38: macro | C38: updated ro reflect new cell positions | D38: 2009-08-24 | E38: 2009-08-24 | F38: 1.03.001
A39: 26 | B39: Interface | C39: several formatting and word changes | D39: 2009-11-02 | E39: 2009-11-02 | F39: 1.04.001
A40: 27 | B40: Interace/macro | C40: several formatting and word changes; added windspeeds >1 for Class A | D40: 2010-01-19 | E40: 2010-01-19 | F40: 1.05.001
A41: 28 | B41: Interace/macro | C41: several formatting and word changes; | D41: 2010-03-05 | E41: 2010-03-05 | F41: 1.05.002
A42: 29 | B42: Extensive | C42: Added AERSCREEN capability | F42: 1.06z6.aerscreen.v10
A43: 30 | B43: Extensive | C43: Added Batch mode capability | F43: 1.06z6.aerscreen.v10
A44: 31 | B44: Extensive | C44: Added steam-assist and air-assist | D44: 2012-06-22 | F44: 1.06z6.aerscreen.v10.steam.v12
A45: 32 | B45: Extensive | C45: added blowdown calculations | D45: 2012-08-01 | F45: 2.00.120815
A46: 33 | B46: Extensive | C46: Added stripping Model 2 | D46: 2013-01-07 | F46: 2.00.121219c
A47: 34 | B47: bug | C47: Corrected order of land use file selection | D47: 2014-02-27
B48: Extensive | C48: Added incinerator, bug fixes | D48: 2014-07-07 | F48: 2.02.140702
F49: 2.05.0721
A51: end
C54: Named Ranges
C55: Version_Display | D55: =ABOUT!$A$2
C56: VersionStamp | D56: =ABOUT!$F$2

Sheet ABOUT
A2: AERflareincin Ver 2.12 | E2: Versions | F2: SS2.12.190220;M2.12.190220
A3: 2019-Feb-20
A4: AERflare-incin FLARE AND INCINERATOR AIR DISPERSION MODELLING SPREADSHEET | E4: LEGEND
A5: developed for | E5: cells | F5: Prompt description or comment
A6: Alberta Energy Regulator | E6: cells | F6: Entry prompt
A7: developed by | E7: cells | F7: Required Entry for Dispersion Calculations
A8: M.Zelensky, M.Sc., P.Eng. | E8: cells | F8: Protected or locked calculation
A9: mike.zelensky@aer.ca | E9: cells | F9: Warning regarding a prompt or calculation that requires special attention
A10: in association with | E10: cells | F10: Default value, Locked
A11: B.Zelt, Ph.D., P.Eng.
A12: aertools@zeltpsi.com | E12: PAGES | F12: INFORMATION: User information and technical reference
A13: with support from | E13: iPAGES | F13: INPUTS: User will provide Inputs on these pages
A14: Petroleum Technology Alliance Canada | E14: oPAGES | F14: OUTPUTS: Summary/Graphic/Reference
A15: If the AERflare-incin User Guide fails to provide adequate clarification; please send inquiries and problem spreadsheets to: | E15: oPAGES | F15: TECHNICAL OUTPUT: Calculations/Results
A16: Directive060Inbox@aer.ca
A17: AERflare-incin IS PROVIDED FREE OF CHARGE
A18: for documentation, user guide or updates, please refer to:
A19: http://www.zeltpsi.com/aertools.html
A20: please submit bug reports or suggestions to:
A21: aertools@zeltpsi.com
B23: =IF(RECALC_REQD,"*** REMODEL*** INPUTS DON'T MATCH OUTPUTS","") -> *** REMODEL*** INPUTS DON'T MATCH OUTPUTS
A24: QUALIFICATIONS of USERS
B25: AERflare-incin is freely distributed to assist non-routine and routine flare air dispersion modelling within Alberta. Although AERflare-incin is a screening model (uses only a few user inputs to create a realistic and conservative estimate of flare emissions and concentrations), it is also complex tool. AERflare-incin requires inputs that may require sound engineering judgement or other technical expertise. It uses site-specific thermodynamics, fluid dynamics, and air dispersion modelling. Sour gas dispersion assessment is a multidisciplinary and iterative task with many assumptions and judgments.
B26: The AERflare-incin model was created so that a minimal amount of technical background is required to run the models. However, there remains some technical knowledge required to supply suitable inputs and the ability to understand whether the output is appropriate for the inputs and meets the needs of stakeholders. The user must recognise that the models are technical in nature and the correct interpretation of the result may require technical expertise that proceeds from consequences of the inputs. In any modelling assessment, high quality input data is very important.
B27: The model has been created with a professional commitment to environmental protection and safeguarding the well-being of the public. It is the responsibility of the software user to accept and continue this commitment in their application of the software. The software is supplied as a tool to assist the user to comply with applicable statutes, regulations and bylaws. Neither the software nor application of the software is intended to replace statutes, regulations or bylaws.
A28: Suitable Technical Background
B29: Environmental issues are interdisciplinary in nature. The practice of environmental science requires the integration of diverse disciplines and philosophies; many projects will require a team of appropriate specialists to address complex environmental issues. Persons doing the assessment should undertake only that aspect of environmental work that they are competent to perform by virtue of training and experience. Thus they should seek out and use appropriate Environmental Specialists to provide expert advice on certain environmental issues.
B30: The basis of the models is technical with expertise required in chemistry, thermodynamics, atmospheric physics, meteorological processes, industrial processes and regulatory affairs. While the full technical background is not a requirement to execute the models, the user of the software is required to have a general engineering and environmental science background; a general knowledge of the emission sources: wells, pipelines, and pipeline networks; and a working knowledge of the most current version of:
B31: - AER: Directive 060 – Upstream Petroleum Industry Flaring, Incinerating, and Venting
B32: - ESRD: Air Quality Model Guideline
B33: - ESRD: Non-routine Flaring Management: Modelling Guidance
B34: - CAPP: Sour Non-routine Flaring Framework
B35: =IF(RECALC_REQD,"*** REMODEL*** INPUTS DON'T MATCH OUTPUTS","") -> *** REMODEL*** INPUTS DON'T MATCH OUTPUTS
A36: INSTRUCTIONS
A37: 1 | B37: Please, read the AERflare-incin User Guide
A38: 2 | B38: Provide information on 'iPAGES' (users enter their inputs into framed white cells, see Legend).
A39: 3 | B39: Terrain elevations are required for all modelling.
A40: 4 | B40: Please consider WARNINGS and COMMENTS by responding appropriately.
A41: 5 | B41: Note: (A) The most representative raw gas analysis available must be input. (B) Fuel Gas Addition may be required, as indicated on 'oSUMMARY' or 'iSOURCE' sheet. A representative fuel gas analysis must be input.
A42: 6 | B42: To calculate air quality concentrations, go to 'oMODELLING' page and select calculation option and follow instructions. Both parallel airflow and elevated terrain calculations are performed for SO2 and H2S.
A43: 7 | B43: A summary of the inputs and calculations is provided on the 'oSUMMARY' sheet.
A44: 8 | B44: Save the spreadsheet with a file name based upon the location; this will be part of the audit records.
A45: 9 | B45: Print the following pages from the spreadsheet: iSTART, oSUMMARY, iNOTES, iFACILITY, iSOURCE, iTERRAIN and oMODELLING by selecting Print Icon on each worksheet, or use the above Print Required Pages button (14 pages). Note that the printouts are designed to exclude Additional Instructions, but will display Warnings and Comments.
A46: 10 | B46: For a Temporary Flaring Permit request, submit: i) the sheets listed in Instruction 9 (including attachments as a *.pdf), ii) an electronic version of spreadsheet (*.xlsm), and iii) the Dispersion Modelling Report (if required) with a cover letter to the AER, signed by the responsible person.

Sheet LAHEE
B1: LAHEE Page | E1: =ABOUT!$A$2 -> AERflareincin Ver 2.12
B2: Lahee classification reference
B3: A Lahee classification is a “pre-spud” assignment given to each well based on the geological complexities and the known existence of hydrocarbon accumulations (pools) in the area where the well is to be drilled. The classification takes into account the general degree of risk of geological failure.
B5: Mnemonic | C5: Lahee classification | D5: Description | E5: Tier
A6: 1 | B6: NFW | C6: New Field Wildcat | D6: An NFW well is located at a considerable distance beyond the limits of known pools and is outside the boundaries of existing fields. The well is drilled in an area where hydrocarbons have not yet been discovered. The geological risk of this type of well is very high: in the absence of the discovery of a new pool, the well would be deemed unsuccessful. | E6: 1
A7: 2 | B7: NPW | C7: New Pool Wildcat | D7: The objective of an NPW well is the discovery of a new pool(s) in all zones that the well encounters. The well is located in an already discovered field. The geological risk of this type of well is very high: in the absence of the discovery of a new pool, the well would be deemed unsuccessful. In circumstances where the well is in relatively close proximity to the limits of a known pool(s), the NPW classification must be based on technical data suggesting that a new pool will be encountered. A well drilled within or in close proximity to the limits of a known pool(s) but terminating shallower than the known pool(s) is normally classified as NPW, except in the case where pre-existing wells in close proximity to the well have logs and/or tests that strongly suggest the existence of shallower pools to be penetrated by the well. | E7: 1
A8: 3 | B8: DPT | C8: Deeper Pool Test | D8: A DPT well is located within or in close proximity to a known pool(s) and is drilled with the objective of exploring for new, undiscovered pool(s) below the deepest of the known pool(s). Only the interval below the deepest of the known pool(s) is exploratory and carries a high geological risk. The remaining metreage in a DPT is development, with low geological risk. In circumstances where the exploratory portion of the well is in relatively close proximity to the limits of a known pool(s), the DPT classification must be based on technical data suggesting that a new pool will be encountered. | E8: 1
A9: 4 | B9: OUT | C9: Outpost | D9: An OUT well is drilled with the intention of extending a known pool by a considerable distance. A well in proximity to a known pool but whose outcome is uncertain because of geological complexities might also be classified as OUT. There would be some geological risk associated with drilling an OUT well. | E9: 1
A10: 5 | B10: DEV | C10: Development | D10: The objective of a DEV well is to further exploit or extend a known pool(s). The well may be inside of the established limits of the pool or in close proximity to the edge of the pool(s). The DEV classification should be used even if the well is drilled slightly deeper than the target pool, especially where the deeper strata to be penetrated have no hydrocarbon-bearing potential. The geological risk of this type of well is low. Wells licensed with a well type of production and substance of bitumen are DEV. | E10: 2
A11: 6 | B11: REN | C11: Re-entry | D11: A REN classification is assigned to a well that re-enters an existing wellbore for the purpose of recompleting the well as a producer or service well with no new strata being drilled. If new strata are to be drilled (e.g., by deepening, whipstock, or sidetracks), the well is assigned the appropriate Lahee classification. | E11: 0
A12: 7 | B12: DSW | C12: Development Service Well | D12: A DSW well is drilled to introduce fluids into a formation or observe the performance of a reservoir. Water injection, steam injection, and observation wells are examples of DSW wells. | E12: 2
A13: 8 | B13: OV | C13: Evaluation Oil Sands | D13: An OV well is drilled in an oil sands area to evaluate the oil sands and is not intended to produce hydrocarbons. | E13: 0
A14: 9 | B14: TH | C14: Test Hole | D14: A TH well is drilled for geological and geophysical stratigraphic evaluation purposes and is not intended to produce or expected to encounter hydrocarbons. | E14: 0
A15: 10 | B15: EX | C15: Experimental | D15: An EX well is part of an AER-approved experimental scheme. | E15: 0
A16: 11 | B16: OTH | C16: Other | D16: A well drilled for water production, brine production, gas storage, water disposal, or any other purpose not covered by other Lahee classifications is classified as OTH. | E16: 0

Sheet DEFINITIONS
B1: DEFINITIONS Page | D1: =ABOUT!$A$2 -> AERflareincin Ver 2.12
B2: AER defined vocabulary
B3: The following is a list of nomenclature and defintions used by AERflare-incin. Note the term flaring is interchangeable with incinerating (ref. AER D060).
B5: Term | C5: Description
A6: 1 | B6: Acid Gas | C6: Gas that is separated in the treating of solution or non-associated gas that contains hydrogen sulphide (H2S), total reduced sulphur compounds, and/or carbon dioxide (CO2).
A7: 2 | B7: Combustion Efficiency (CONV) | C7: Is the percentage of the net heating value that is released as heat through combustion.
A8: 3 | B8: Conversion Efficiency (COMB) | C8: Is the relative conversion of carbon and sulphur compounds in the reactants to products of complete and incomplete combustion.
A9: 4 | B9: Emergency Flaring | C9: Emergency flaring occurs when safety controls within the facility are enacted to depressurize equipment to avoid possible injury or property loss resulting from explosion, fire or catastrophic equipment failure. Examples of upset flaring include: pressure safety valve overpressure; and emergency shut down.
A10: 5 | B10: Non Routine Flaring | C10: “Non-routine” applies to intermittent and infrequent flaring. There are two types of non-routine flaring: planned flaring and unplanned flaring.
A11: 6 | B11: Planned Flaring | C11: Flare events where the operator has control over when flaring will occur, how long it will occur and the flow rates. Planned flaring results from the intentional de-pressurization of processing equipment or piping systems. Examples of planned flaring include: pipeline blowdowns; equipment depressurization; loss of normal control during start-ups; facility turnarounds and well tests.
A12: 7 | B12: Pseudo-Parameter | C12: An air dispersion model input (e.g., diameter, height, velocity and temperature for a flare) that is based on reverse engineering the model inputs so that the model produces the correct intermediate calculation (i.e., buoyancy and momentum flux).
A13: 8 | B13: Refined Assessment | C13: A refined air dispersion modelling assessment is a more complex and data-intensive level of air dispersion modelling. Refined assessments more closely estimate actual air quality impacts by using site-specific meteorological data.
A14: 9 | B14: Risk Based Criteria | C14: The Alberta Ambient Air Quality Objectives (AAAQO) provides a basis for determining acceptable air quality. For the purpose of designing flare stack heights and flow rates, a small fraction of event modelling predictions are permitted above the AAAQO according to the strict guidance in this document. An example of a risk based criteria is the 1-h time average for a planned non-routine flare; modelling predictions at a receptor must be at or below the 1-h AAAQO 99% of the hourly predictions per year .
A15: 10 | B15: Routine Flaring | C15: “Routine” applies to continuous or intermittent flaring that occurs on a regular basis due to normal operation. Examples of routine flaring include: glycol dehydrator reboiler still vapour flaring; storage tank vapour flaring; flash tank vapour flaring; and solution gas flaring.
A16: 11 | B16: Screening Assessment | C16: A screening air dispersion modelling assessment is the quickest and simplest dispersion modelling approach. Screening assessment usually provide a conservative (worst-case) estimate of downwind concentrations.
A17: 12 | B17: Sour Gas | C17: Natural gas, including solution gas, containing hydrogen sulphide (H2S).
A18: 13 | B18: Unplanned Flaring | C18: Emergency or upset operational activities closely associated with facility health and safety. Flare events where the operator has no control of when flaring will occur. There are two types of unplanned flaring: upset flaring and emergency flaring.
A19: 14 | B19: Upset Flaring | C19: Upset flaring occurs when one or more process parameters fall outside the allowable operating or design limits and flaring is required to aide in bringing the production back under control. Examples of upset flaring include: off-spec product; hydrates; loss of electrical power; process upset; and operation error.

Sheet iSTART
B1: iSTART Page | I1: =ABOUT!$A$2 -> AERflareincin Ver 2.12
B2: Program settings and switches
B3: =IF(LEN(reg_calc)>0,reg_calc,"")&IF(LEN(reg_calc)>0," ","")& IF(NSET_NONDEFAULT>0,NSET_NONDEFAULT&" NON-DEFAULT SETTINGS","")& IF(AND(NSET_NONDEFAULT>0,NSET_ADVANCED>0)," & ","")& IF(NSET_ADVANCED>0,NSET_ADVANCED&" ADVANCED SETTINGS","")& IF(oSUMMARY!$I$2>0," **"&oSUMMARY!$I$2&" iNotes page incomplete","")& IF(oSUMMARY!$I$3>0," **"&oSUMMARY!$I$3&" Potential issues with application","") -> **4 iNotes page incomplete **3 Potential issues with application | D3: =WARNING_REMODEL -> *** REMODEL*** INPUTS DON'T MATCH OUTPUTS
B4: Are these calculations for a FLARE source or an INCINERATOR source? | C4: 1 | D4: Selecting FLARE or INCINERATOR will change the calculation process. | L4: =CHOOSE(MSOURCETYPE,"Flare","Incinerator") -> Flare | M4: =CHOOSE(MSOURCETYPE,"Flaring","Incineration") -> Flaring | N4: administration use
B6: Are these calculations for an ambient air quality evaluation or for a temporary permit application? | C6: 1 | D6: Select PERMIT to display fields applicable to non-routine planned flaring or incinerating for temporary permit application including air dispersion modelling. Select EVALUATION to display fields applicable to air dispersion modelling.
B8: Flaring and Incinerating Classification | D8: The classification defines what the Risk Based Criteria (RBC) will be used to assess acceptable modelling predictions. The classification also sets limits on the maximum acceptable concentration for modelling.
D9: RBC % (Limit 1) | E9: Max % (Limit 2) | F9: SO2 RBC (µg/m³) | G9: SO2 Max (µg/m³) | H9: H2S RBC (µg/m³) | I9: H2S Max (µg/m³) | L9: SO2 RBC (ppm) | M9: SO2 Max (ppm) | N9: H2S RBC (ppm) | O9: H2S Max (ppm)
B10: Routine -- Continuous or Intermittent Flaring or Incinerating for more than 720 hours per year | C10: 2 | D10: =user_rbc -> 99.9087 | E10: -- | F10: =USER_OBJ_SO2 -> 450 | G10: -- | H10: =USER_OBJ_H2S -> 14 | I10: -- | L10: =F10/((Pref*MM_SO2)/(k_Ru*(25+273.15)))*0.001 -> 0.1718486094 | M10: =IF(AND(G10>0,G10<>"--"),G10/((Pref*MM_SO2)/(k_Ru*(25+273.15)))*0.001,"--") -> -- | N10: =H10/((Pref*MM_H2S)/(k_Ru*(25+273.15)))*0.001 -> 0.0100497973 | O10: =IF(AND(I10>0,I10<>"--"),I10/((Pref*MM_H2S)/(k_Ru*(25+273.15)))*0.001,"--") -> --
B11: Non-Routine -- Planned Flaring or Incinerating | D11: =user_rbc_planned -> 99 | E11: 99.9 | F11: =USER_OBJ_SO2 -> 450 | G11: 900 | H11: =USER_OBJ_H2S -> 14 | I11: 7652 | L11: =F11/((Pref*MM_SO2)/(k_Ru*(25+273.15)))*0.001 -> 0.1718486094 | M11: =IF(AND(G11>0,G11<>"--"),G11/((Pref*MM_SO2)/(k_Ru*(25+273.15)))*0.001,"--") -> 0.3436972188 | N11: =H11/((Pref*MM_H2S)/(k_Ru*(25+273.15)))*0.001 -> 0.0100497973 | O11: =IF(AND(I11>0,I11<>"--"),I11/((Pref*MM_H2S)/(k_Ru*(25+273.15)))*0.001,"--") -> 5.492932069
B12: Non-Routine -- Unplanned Flaring or Incinerating | D12: =user_rbc_unplanned -> 90 | E12: 99.9 | F12: =USER_OBJ_SO2 -> 450 | G12: 9923 | H12: =USER_OBJ_H2S -> 14 | I12: 7652 | L12: =F12/((Pref*MM_SO2)/(k_Ru*(25+273.15)))*0.001 -> 0.1718486094 | M12: =IF(AND(G12>0,G12<>"--"),G12/((Pref*MM_SO2)/(k_Ru*(25+273.15)))*0.001,"--") -> 3.78945278 | N12: =H12/((Pref*MM_H2S)/(k_Ru*(25+273.15)))*0.001 -> 0.0100497973 | O12: =IF(AND(I12>0,I12<>"--"),I12/((Pref*MM_H2S)/(k_Ru*(25+273.15)))*0.001,"--") -> 5.492932069
B13: Hide Technical Pages | C13: 2 | D13: Hiding technical pages does not change predictions, but only moves the pages into the background out of view. | L13: Note: - conversion at 25 °C, 101.325 kPa - 3.789 ppm is derived from SO2 evacuation criteria of 5 ppm over 15 minutes adjusted to 60 minutes=5*(15/60)^0.2 - 5.493 ppm is derived from H2S evacuation criteria of 10 ppm over 3 minutes adjusted to 60 minutes=10*(3/60)^0.2
B14: Hide iBATCH & oBATCH Pages | C14: 2 | D14: If the batch operations are not used regularly, the batch pages can be hidden.
B15: Hide iBIN Page | C15: 2 | D15: Once AERflare-incin has been configured on your computer the bin page can be hidden. Unhide the bin page to update entries for folder changes as necessary.
B17: Advanced Technical Switches | L17: Total Advanced Settings
B18: Description | C18: Variable | D18: Units | E18: Inputs | F18: Default | G18: Comment | L18: =SUM(L19:L49) -> 0
B19: Very Conservative (1-Yes, 0-No) | C19: mconsv | D19: -- | E19: 0 | F19: 0 | L19: start
B20: Re-create run.bat file each time (1-Yes, 0-No) | C20: mrunbat | D20: -- | E20: 1 | F20: 1 | L20: =IF(E20<>F20,1,0) -> 0
B21: Add pause to run.bat file (1-Yes, 0-No) | C21: mpause | D21: -- | E21: 0 | F21: 0 | L21: =IF(E21<>F21,1,0) -> 0
B22: Run POSTBAT after each batch line (1-Yes, 0-No) | C22: mpostbat | D22: -- | E22: 0 | F22: 0 | L22: 0
B23: Keep input files (1-Yes, 0-No) | C23: mkeep | D23: -- | E23: 0 | F23: 0 | L23: 0
B24: Keep output files (1-Yes, 0-No) | C24: mkeepout | D24: -- | E24: 0 | F24: 0 | L24: 0
B25: Batch mode: dump output on oAERSCREEN (1-Yes, 0-No) | C25: mexportout | D25: -- | E25: 0 | F25: 0 | G25: =IF(E25=1,"Batch exports to MKEEP location","") ->  | L25: =IF(E25<>F25,1,0) -> 0
B26: Use DEBUG switch in AERMOD input files (1-Yes, 0-No) | C26: mdebug | D26: -- | E26: 0 | F26: 0 | L26: 0
B27: Use DEBUG dump HBH switch (1-Yes, 0-No) | C27: mdebugdump_hbh | D27: -- | E27: 0 | F27: 0 | L27: 0
B28: AERMOD input files- uses 0,0 origin (1-Yes, 0-No) | C28: mrelloc | D28: -- | E28: 0 | F28: 0 | L28: 0
B29: AERMOD input files-export receptors (1-Yes, 0-No) | C29: mexprec | D29: -- | E29: 1 | F29: 1 | L29: 0
B30: Apply BETA adjustment of u* in AERMET (1-Yes, 0-No) | C30: mmetustar | D30: -- | E30: 1 | F30: 1 | G30: =IF(MMETUSTAR=0,"","BETA MMETUSTAR=1 must be used for both iUSERMET and oMODELLING. It has no effect on screening") -> BETA MMETUSTAR=1 must be used for both iUSERMET and oMODELLING. It has no effect on screening | L30: 0
B31: Use ALPHA adjustment of low winds method 1 (1-Yes, 0-No) (use SVmin,WSmin,FRANmax settings below) | C31: mlowwind | D31: -- | E31: 0 | F31: 0 | L31: 0
B32: Use daily 1h maximum instead of max hourly (1-Yes, 0-No) | C32: md1hm | D32: -- | E32: 0 | F32: 0 | L32: 0
B33: Use variable radiative heat loss, Ont. MOE (1-Yes, 0-No) | C33: mvarrad | D33: -- | E33: 0 | F33: 0 | G33: BETA testing | L33: 0
B34: Alternative Pseudo-Parameter Models | C34: mpseudo | D34: -- | E34: 1 | F34: 1 | G34: BETA 1:AERflare; 2=US EPA; 3=Ont; 4=BC | L34: 0
B35: Force NOSTD for alternative Models. AER always uses NOSTD. (0-NOSTD not used,1-NOSTD) | C35: mnostd | D35: -- | E35: 0 | F35: 0 | G35: =IF(mNOSTD=1,"EPA, ONT and BC Stack Height pseudo-parameter is corrected for STD","") ->  | L35: 0
B36: Multi-Source (do no use NOSTD) (0-NOSTD will be used,1-NOSTD not used) | C36: mmultisource | D36: -- | E36: 0 | F36: 0 | G36: =IF(mMULTISOURCE=1,"NOSTD is not used and pseudo-height Hs compensated","NOSTD is used and pseudo-height Hs already compensated") -> NOSTD is used and pseudo-height Hs already compensated | L36: =IF(E36<>F36,1,0) -> 0
B37: Force SCREEN AERMOD Control Setting (1-Yes, 0-No) | C37: mscreen | D37: -- | E37: 0 | F37: 0 | L37: 0
B38: Force Site Elevation to DEM elevation (1-Yes, 0-No) | C38: melev | D38: -- | E38: 1 | F38: 1 | L38: 0
B39: Force Terrain (1=Parallel only; 2=Elev only; 0=Both Default) | C39: mforceterrain | D39: -- | E39: 0 | F39: 0 | G39: =IF(E39=1,"Parallel Only",IF(E39=2,"Elevated Only","")) ->  | L39: 0
B40: Flame-out Sour Gas Venting Source (0-combustion, 1-flameout) | C40: mflameout | D40: -- | E40: 0 | F40: 0 | G40: =IF(E40=1,"FLAMEOUT","") ->  | L40: 0
B41: Use Delta-T Method for Flares (1-Yes, 0-No) | C41: mdeltat | D41: -- | E41: 0 | F41: 0 | G41: =IF(AND(mpseudo=1,mdeltat=1),"ERROR-Delta-T method with mPSEUDO=1",IF(E41=1,"Using Delta-T Method for Flare","")) ->  | L41: 0
B42: Fuel Gas Rate (1=Proportional; 2=Constant) | C42: mfgr | D42: -- | E42: 1 | F42: 1 | G42: =IF(E42=1,"Fuel Gas is Proporional","Fuel Gas is Constant") -> Fuel Gas is Proporional | L42: 0
B43: DEM always download files (1-Yes, 0-No) | C43: mdemget | D43: -- | E43: 0 | F43: 0 | L43: 0
B44: LCC always download files (1-Yes, 0-No) | C44: mlccget | D44: -- | E44: 0 | F44: 0 | L44: 0
B45: Temperature at Minimum Orifice Diameter (at Exit) is Forced to Ambient Temperature (1-Yes, 0-No) | C45: mmindialoc | D45: -- | E45: 0 | F45: 0 | G45: =IF(E45=1,"Blowdown temperature is ambient","Blowdown uses choked temperature, Tei") -> Blowdown uses choked temperature, Tei | L45: 0
B46: Prevents message box dialogues (1-Yes, 0-No) | C46: mquiet | D46: -- | E46: 0 | F46: 0 | G46: =IF(E46=1,"Msg boxes suppressed during automation","") ->  | L46: 0
B47: Synchronize settings between spreadsheets (1-Yes, 0-No) | C47: msync | D47: -- | E47: 1 | F47: 1 | L47: 0
B51: Non-Default Settings | L51: Total Non-Default Settings
B52: Description | C52: Variable | D52: Units | E52: Inputs | F52: Default | G52: Comment | L52: =SUM(L53:L115) -> 0 | M52: flag (0=default;1=non-default)
B53: Blank | F53: start | L53: start
B54: Ambient Temperature | C54: ta | D54: °C | E54: 5 | F54: 5 | G54: =IF(DEF_Ta=E54,"","NON-DEFAULT SELECTION") ->  | L54: =IF(G54<>"",1,0) -> 0
B55: Average Ambient Wind Speed | C55: ua | D55: m/s | E55: 3.5 | F55: 3.5 | G55: =IF(DEF_Ua=E55,"","NON-DEFAULT SELECTION") ->  | L55: 0
B56: PG Stability Class | C56: ipg | D56: -- | E56: 4 | F56: 4 | G56: =IF(DEF_PG=E56,"","NON-DEFAULT SELECTION") ->  | L56: 0
B57: Wind Anemometer Reference Height | C57: zref | D57: m | E57: 10 | F57: 10 | G57: =IF(USER_ZREF=F57,"","NON-DEFAULT SELECTION") ->  | L57: 0
B58: Qmin fraction of Qmax | C58: qmin/qmax | D58: -- | E58: 0.125 | F58: 0.125 | G58: =IF(USER_QMIN=F58,"","NON-DEFAULT SELECTION") ->  | L58: 0
B59: SO2 1h Air Quality Objective | C59: obj_so2 | D59: µg/m³ | E59: 450 | F59: 450 | G59: =IF(USER_OBJ_SO2=F59,"","NON-DEFAULT SELECTION") ->  | L59: 0
B60: SO2 24h Air Quality Objective | C60: obj_24h_so2 | D60: µg/m³ | E60: 125 | F60: 125 | G60: =IF(USER_OBJ_24H_SO2=F60,"","NON-DEFAULT SELECTION") ->  | L60: 0
B61: SO2 Annual Air Quality Objective | C61: obj_annual_so2 | D61: µg/m³ | E61: 20 | F61: 20 | G61: =IF(USER_OBJ_ANNUAL_SO2=F61,"","NON-DEFAULT SELECTION") ->  | L61: 0
B62: H2S 1h Air Quality Objective | C62: obj_h2s | D62: µg/m³ | E62: 14 | F62: 14 | G62: =IF(USER_OBJ_H2S=F62,"","NON-DEFAULT SELECTION") ->  | L62: 0
B63: H2S 24h Air Quality Objective | C63: obj_24h_h2s | D63: µg/m³ | E63: 4 | F63: 4 | G63: =IF(USER_OBJ_24H_H2S=F63,"","NON-DEFAULT SELECTION") ->  | L63: =IF(G63<>"",1,0) -> 0
B64: Risk Based Criteria for Modelling Predictions (Routine) | C64: rbc | D64: -- | E64: 99.9087 | F64: 99.9087 | G64: =IF(user_rbc=F64,"","NON-DEFAULT SELECTION") ->  | L64: 0
B65: Risk Based Criteria for Modelling Predictions (Unplanned) | C65: rbc_planned | D65: -- | E65: 99 | F65: 99 | G65: =IF(user_rbc_planned=F65,"","NON-DEFAULT SELECTION") ->  | L65: 0
B66: Risk Based Criteria for Modelling Predictions (Planned) | C66: rbc_unplanned | D66: -- | E66: 90 | F66: 90 | G66: =IF(user_rbc_unplanned=F66,"","NON-DEFAULT SELECTION") ->  | L66: 0
B67: Receptor Resolution for Maximum Concentration | C67: dxmin | D67: m | E67: 20 | F67: 20 | G67: =IF(user_dxmin=F67,"","NON-DEFAULT SELECTION") ->  | L67: 0
B68: Raw, Fuel and Lift Gas Temperature before Combustion | C68: tginit | D68: °C | E68: 5 | F68: =DEF_Ta -> 5 | G68: =IF(USER_TGINIT=DEF_TGINIT,"","NON-DEFAULT SELECTION") ->  | L68: 0
B69: Flare Radiative Heat Loss | C69: flarerad | D69: -- | E69: 0.25 | F69: 0.25 | G69: =IF(flarerad=F69,"","NON-DEFAULT SELECTION") ->  | L69: 0
B70: Minimum value of Sigma-V (0.01 to 1.0 m/s) | C70: svmin | D70: m/s | E70: 0.2 | F70: 0.2 | G70: =IF(USER_SVMIN=DEF_SVMIN,"","NON-DEFAULT SELECTION") ->  | L70: 0
B71: Minimum wind speed (0.01 to 1.0 m/s) | C71: wsmin | D71: m/s | E71: 0.2828 | F71: 0.2828 | G71: =IF(USER_WSMIN=DEF_WSMIN,"","NON-DEFAULT SELECTION") ->  | L71: 0
B72: Maximum meander parameter (0.5 to 1.0) (optional for MLOWWIND2) | C72: franmax | D72: -- | E72: 0.95 | F72: 0.95 | G72: =IF(USER_FRANMAX=DEF_FRANMAX,"","NON-DEFAULT SELECTION") ->  | L72: 0
B73: Receptor hill height grid resolution | C73: hhdx | D73: m | E73: -1 | F73: -1 | G73: =IF(USER_HHDX=DEF_HHDX,"","NON-DEFAULT SELECTION") ->  | L73: 0
B74: Modelling minmum distance for receptor grid | C74: rmindist | D74: m | E74: 100 | F74: 100 | G74: =IF(rMINDIST=F74,"","NON-DEFAULT SELECTION") ->  | L74: =IF(G74<>"",1,0) -> 0
B75: Modelling domain for receptor grid | C75: rmaxdist | D75: m | E75: 10000 | F75: 10000 | G75: =IF(USER_DOMAIN=F75,"","NON-DEFAULT SELECTION") ->  | L75: 0
B76: Modelling domain buffer beyond receptor grid | C76: dombuf | D76: m | E76: 5000 | F76: 5000 | G76: =IF(USER_DOMAIN_BUFFER=F76,"","NON-DEFAULT SELECTION") ->  | L76: 0
B77: Minimum number of data point in a period to apply RBC | C77: mndata | D77: -- | E77: 7884 | F77: =INT(0.9*8760) -> 7884 | G77: =IF(mnData=F77,"","NON-DEFAULT SELECTION") ->  | L77: 0
B78: Minimum number of data point in 24h periods to apply RBC | C78: mndata24 | D78: -- | E78: 328 | F78: =INT(0.9*365) -> 328 | G78: =IF(mnData24=F78,"","NON-DEFAULT SELECTION") ->  | L78: 0
B79: Number of virtual sources for HbH modelling | C79: nsources | D79: -- | E79: 9 | F79: 9 | G79: =IF(NSOURCES=F79,"",IF(NSOURCES<=20,"NON-DEFAULT SELECTION","Out of Range: 1<=Nsources<=20")) ->  | L79: 0
B80: Flag pole receptor height | C80: zflag | D80: m | E80: 0 | F80: 0 | G80: =IF(USER_ZFLAG=F80,"","NON-DEFAULT SELECTION") ->  | L80: 0
B81: Radius for AERSURFACE roughness | C81: rrough | D81: m | E81: 3000 | F81: 3000 | G81: =IF(USER_RROUGH=F81,"","NON-DEFAULT SELECTION") ->  | L81: 0
B82: Radius for AERSURFACE albedo and bowen ratio | C82: ralbbow | D82: m | E82: 5000 | F82: 5000 | G82: =IF(USER_RALBBOW=F82,"","NON-DEFAULT SELECTION") ->  | L82: 0
B83: Tag Name for Flare Source in Emissions File | C83: srctag | D83: -- | E83: SOURCE | F83: SOURCE | G83: =IF(user_srctag=F83,"","NON-DEFAULT SELECTION") ->  | L83: =IF(E83<>F83,1,0) -> 0
B84: Incinerator Stack Heat Loss | C84: qlstack | D84: -- | E84: 0.1 | F84: 0.1 | G84: =IF(E84=F84,"","NON-DEFAULT SELECTION") ->  | L84: =IF(E84<>F84,1,0) -> 0
B85: Incinerator Kinetic Design Factor | C85: kfactor | D85: -- | E85: 1 | F85: 1 | L85: =IF(E85<>F85,1,0) -> 0
B86: Canopy Height for Foliage Damage Assessment | C86: zfoliage | D86: -- | E86: 15 | F86: 15 | L86: =IF(E86<>F86,1,0) -> 0
B87: Energy Efficiency: Boiler | C87: eta_boiler | D87: -- | E87: 0.8 | F87: 0.8 | L87: =IF(E87<>F87,1,0) -> 0
B88: Energy Efficiency: Heater | C88: eta_heater | D88: -- | E88: 0.75 | F88: 0.75 | L88: 0
B89: Energy Efficiency: Unknown Engine | C89: eta_engine | D89: -- | E89: 0.35 | F89: 0.35 | L89: 0
B90: Energy Efficiency: Unknown Turbine | C90: eta_turbine | D90: -- | E90: 0.35 | F90: 0.35 | G90: =IF(E90=F90,"","NON-DEFAULT SELECTION") ->  | L90: 0
B91: Energy Efficiency: Unknown Incinerator | C91: eta_incinerator | D91: -- | E91: 0.0001 | F91: 0.0001 | L91: 0
B92: Excess Air: Boiler | C92: ea_boiler | D92: -- | E92: 0.5 | F92: 0.5 | L92: 0
B93: Excess Air: Heater | C93: ea_heater | D93: -- | E93: 0.25 | F93: 0.25 | L93: 0
B94: Excess Air: Unknown Engine | C94: ea_engine | D94: -- | E94: 0.4 | F94: 0.4 | L94: 0
B95: Excess Air: Unknown Turbine | C95: ea_turbine | D95: -- | E95: 0.75 | F95: 0.75 | L95: 0
B96: Excess Air: Unknown Incinerator | C96: ea_incinerator | D96: -- | E96: 0.25 | F96: 0.25 | L96: 0
B97: Heat Loss: Boiler | C97: hl_boiler | D97: -- | E97: 0.1 | F97: 0.1 | G97: =IF(E97=F97,"","NON-DEFAULT SELECTION") ->  | L97: =IF(E97<>F97,1,0) -> 0
B98: Heat Loss: Heater | C98: hl_heater | D98: -- | E98: 0.1 | F98: 0.1 | G98: =IF(E98=F98,"","NON-DEFAULT SELECTION") ->  | L98: =IF(E98<>F98,1,0) -> 0
B99: Heat Loss: Unknown Engine | C99: hl_engine | D99: -- | E99: 0.4 | F99: 0.4 | G99: =IF(E99=F99,"","NON-DEFAULT SELECTION") ->  | L99: =IF(E99<>F99,1,0) -> 0
B100: Heat Loss: Unknown Turbine | C100: hl_turbine | D100: -- | E100: 0.25 | F100: 0.25 | G100: =IF(E100=F100,"","NON-DEFAULT SELECTION") ->  | L100: =IF(E100<>F100,1,0) -> 0
B101: Heat Loss: Unknown Incinerator | C101: hl_incinerator | D101: -- | E101: 0.1 | F101: =F84 -> 0.1 | G101: =IF(E101=F101,"","NON-DEFAULT SELECTION") ->  | L101: =IF(E101<>F101,1,0) -> 0
B102: Run Flags (see switch table above) | C102: myrun | D102: -- | E102: =IF(BITXORrx(SETUP!$F$4:$K$4)=63,0,BITXORrx(SETUP!$F$4:$K$4)) -> 0 | F102: 0 | G102: =IF(E102=F102,"","NON-DEFAULT SELECTION") ->  | L102: =IF(G102<>"",1,0) -> 0
B103: User Period Selection (Annual or Month) | C103: mflmon | D103: -- | E103: =MFLMON -> 1 | F103: =IF(AND(start_flare=2,MFLMON>1), MONTH(AVERAGE(flare_date1,flare_date2))+1, IF(AND(start_flare=3),1,MFLMON)) -> 1 | L103: 0
B104: Blowdown Distribution of Mass Option | C104: mdist | D104: -- | E104: =MDIST -> 0 | F104: 2 | G104: =IF(MBLOWDOWN=2,IF(E104=F104,"","NON-DEFAULT SELECTION"),"") ->  | L104: 0
B105: Blowdown User Entry of Qmax | C105: qmax | D105: -- | E105: =IF(user_qmax="","blank",user_qmax) -> blank | F105: blank | L105: 0
B106: Blowdown User Entry of Qtotal | C106: qtotal | D106: -- | E106: =IF(user_qtotal="","blank",user_qtotal) -> blank | F106: blank | L106: 0
B107: Flare Tip High Speed Exit Velocity Check | C107: flagsonicue | D107: -- | E107: =IF(OR(oCALCFLARE!C181=oCALCFLARE!P95,oCALCFLARE!D181=oCALCFLARE!Q95,oCALCFLARE!E181=oCALCFLARE!R95,oCALCFLARE!F181=oCALCFLARE!F95,oCALCFLARE!C200=oCALCFLARE!C95,oCALCFLARE!D200=oCALCFLARE!D95,oCALCFLARE!E200=oCALCFLARE!E95),1,0) -> 0 | F107: 0 | G107: =IF(ISERROR(E107),"",IF(E107=F107,"","Flare Diameter Too Small")) ->  | L107: 0
B108: Land Use around the site | C108: well_lu | D108: -- | E108: =well_lu -> 1 | F108: 1 | L108: 0
B109: Manual Override on iUSERMET creation of meteorology | C109: mmanualentry1 | D109: -- | E109: =mMANUALENTRY1 -> FALSE | F109: FALSE | G109: =IF(E109=F109,"","NON-DEFAULT SELECTION") ->  | L109: 0
E110: Min | F110: Max | G110: Min | H110: Max
B111: Seasonal Minimum and Maximum temperatures used to create the Screening and Screening+ meteorology files (Env. Canada 2002-2006, for Alberta, British Columbia, Saskatchewan) | C111: Spring | D111: °C | E111: -48.5 | F111: 38.4 | G111: -48.5 | H111: 38.4 | I111: =IF(OR(E111<>G111,F111<>H111),"Non-Default","") ->  | L111: =IF(I111<>"",1,0) -> 0
C112: Summer | D112: °C | E112: -10.1 | F112: 39 | G112: -10.1 | H112: 39 | I112: =IF(OR(E112<>G112,F112<>H112),"Non-Default","") ->  | L112: =IF(I112<>"",1,0) -> 0
C113: Fall | D113: °C | E113: -43.9 | F113: 21 | G113: -43.9 | H113: 21 | I113: =IF(OR(E113<>G113,F113<>H113),"Non-Default","") ->  | L113: =IF(I113<>"",1,0) -> 0
C114: Winter | D114: °C | E114: -52.6 | F114: 23 | G114: -52.6 | H114: 23 | I114: =IF(OR(E114<>G114,F114<>H114),"Non-Default","") ->  | L114: =IF(I114<>"",1,0) -> 0
B115: Blank | F115: end | L115: end
B116: Changes to these settings are intended for testing or calculations performed outside of Alberta, Canada

Sheet iBIN
B1: iBIN Page
B2: Location of Executables and Data Files
C4: Changes were made, save your work
B5: BIN | C5: FULL PATH | D5: BROWSE
B6: AERMOD | C6: O:\Models\Air2\Aermod\AERMOD_18081\aermod_exe_64\aermod.exe | G6: file
B7: METFILES | C7: P:\ERCBtools\AERflare\metfiles\v16216\ustaradj_y\ | G7: folder
B8: AERMET | C8: O:\Models\Air2\AERMET\AERMET_18081\aermet_exe\aermet.exe | G8: file
B9: MAKEMET | C9: P:\ERCBtools\AERflare\metfiles\v16216\makemet_16216\MAKEMET.exe | G9: file
B10: DEMLIB | C10: P:\ERCBtools\libDEM\ | G10: folder
B11: LCCLIB | C11: P:\ERCBtools\libLCC\ | G11: folder
B12: POSTBAT | C12: P:\2011\1100500-FlareModel\calcs\postbat.bat | G12: file
B13: GNUPLOT | C13: C:\Program Files\gnuplot\bin\gnuplot.exe | G13: file
B14: GAWK | C14: O:\utils\gawk.exe | G14: file
B15: DEMURL | C15: ftp://ftp.geogratis.gc.ca/pub/nrcan_rncan/elevation/cdem_mnec/ | D15: Do not edit
B16: LCCURL | C16: ftp://ftp.geogratis.gc.ca/pub/nrcan_rncan/vector/geobase_lcc_csc/shp_en/ | D16: Do not edit

Sheet iBATCH
A1: iBATCH Page
A2: Batch automation processing inputs
B6: input | C6: input | D6: input | E6: input | F6: output | G6: output | H6: output | I6: output | J6: imet | K6: input | L6: input | M6: input | N6: input | O6: input | P6: input | Q6: input | R6: input | S6: input | T6: input | U6: input | V6: input | W6: input | X6: input | Y6: input | Z6: input | AA6: input | AB6: input | AC6: input | AD6: input | AE6: input | AF6: input | AG6: input | AH6: input | AI6: input | AJ6: input | AK6: input | AL6: input | AM6: input | AN6: input | AO6: input | AP6: input | AQ6: input | AR6: input | AS6: input | AT6: input | AU6: input | AV6: input | AW6: input | AX6: input | AY6: input | AZ6: input | BA6: input | BB6: input | BC6: input | BD6: input | BE6: input | BF6: input | BG6: input | BH6: input | BI6: input | BJ6: input | BK6: input | BL6: input | BM6: input | BN6: input | BO6: input | BP6: input | BQ6: input | BR6: input | BS6: input | BT6: input | BU6: input | BV6: input | BW6: input | BX6: input | BY6: input | BZ6: input | CA6: input | CB6: input | CC6: input | CD6: input | CE6: input | CF6: input | CG6: input | CH6: input | CI6: input | CJ6: input | CK6: input | CL6: input | CM6: input | CN6: input | CO6: input | CP6: input | CQ6: input | CR6: input | CS6: input | CT6: input | CU6: input | CV6: input | CW6: input | CX6: input | CY6: input | CZ6: input | DA6: input | DB6: input | DC6: input | DD6: input | DE6: input | DF6: input | DG6: input | DH6: input | DI6: input | DJ6: input | DK6: input | DL6: input | DM6: input | DN6: input | DO6: input | DP6: input | DQ6: input | DR6: input | DS6: input | DT6: input | DU6: input | DV6: input | DW6: input | DX6: input | DY6: input | DZ6: input | EA6: input | EB6: input | EC6: input | ED6: input | EE6: input | EF6: input | EG6: input | EH6: input | EI6: input | EJ6: input | EK6: input | EL6: input | EM6: input | EN6: input | EO6: input | EP6: input | EQ6: input | ER6: input | ES6: input | ET6: input | EU6: input | EV6: input | EW6: input | EX6: input | EY6: input | EZ6: input | FA6: input | FB6: input | FC6: input | FD6: input | FE6: input | FF6: input | FG6: input | FH6: input | FI6: input | FJ6: input | FK6: input | FL6: input | FM6: input | FN6: input | FO6: input | FP6: input | FQ6: input | FR6: input | FS6: input | FT6: input | FU6: input | FV6: input | FW6: input | FX6: input | FY6: input | FZ6: input | GA6: input | GB6: input | GC6: input | GD6: input | GE6: input | GF6: input | GG6: input | GH6: input | GI6: input | GJ6: input | GK6: input | GL6: input | GM6: input | GN6: input | GO6: input | GP6: input | GQ6: input | GR6: input | GS6: input | GT6: input | GU6: input | GV6: input | GW6: input | GX6: input | GY6: input | GZ6: input | HA6: input | HB6: input | HC6: input | HD6: input | HE6: input | HF6: input | HG6: input | HH6: input | HI6: input | HJ6: input | HK6: input | HL6: input | HM6: input | HN6: input | HO6: input | HP6: input | HQ6: input | HR6: input | HS6: input | HT6: input | HU6: input | HV6: input | HW6: input | HX6: input | HY6: input | HZ6: input | IA6: input | IB6: input | IC6: input | ID6: input | IE6: input | IF6: input | IG6: input | IH6: input | II6: input | IJ6: input | IK6: input | IL6: input | IM6: input | IN6: input | IO6: input | IP6: input | IQ6: input | IR6: input | IS6: input | IT6: input | IU6: input | IV6: input | IW6: input | IX6: input | IY6: input | IZ6: input | JA6: input | JB6: input | JC6: input | JD6: input | JE6: input | JF6: input | JG6: input | JH6: input | JI6: input | JJ6: input | JK6: input | JL6: input | JM6: input | JN6: input | JO6: input | JP6: input | JQ6: input | JR6: input | JS6: input | JT6: input | JU6: input | JV6: input | JW6: input | JX6: input | JY6: input | JZ6: input | KA6: input | KB6: input | KC6: input | KD6: input | KE6: input | KF6: input | KG6: input | KH6: input | KI6: input | KJ6: input | KK6: input | KL6: input | KM6: input | KN6: input | KO6: input | KP6: input | KQ6: input | KR6: input | KS6: input | KT6: input | KU6: input | KV6: input | KW6: input | KX6: input | KY6: input | KZ6: input | LA6: input | LB6: input | LC6: input | LD6: input | LE6: input | LF6: input | LG6: input | LH6: input | LI6: input | LJ6: input | LK6: input | LL6: input | LM6: input | LN6: input | LO6: input | LP6: input | LQ6: input | LR6: input | LS6: input | LT6: input | LU6: input | LV6: input | LW6: input | LX6: input | LY6: input | LZ6: input | MA6: input | MB6: input | MC6: input | MD6: input | ME6: input | MF6: input | MG6: input | MH6: input | MI6: input | MJ6: input | MK6: input | ML6: input | MM6: input | MN6: input | MO6: input | MP6: input | MQ6: input | MR6: input | MS6: input | MT6: input | MU6: input | MV6: input | MW6: input | MX6: input | MY6: input | MZ6: input | NA6: input | NB6: input | NC6: input | ND6: input | NE6: input | NF6: input | NG6: input | NH6: input | NI6: input | NJ6: input | NK6: input | NL6: input | NM6: input | NN6: input | NO6: input | NP6: input | NQ6: input | NR6: input | NS6: input | NT6: input | NU6: input | NV6: input | NW6: input | NX6: input | NY6: input | NZ6: input | OA6: input | OB6: input | OC6: input | OD6: input | OE6: input | OF6: input | OG6: input | OH6: input | OI6: input | OJ6: input | OK6: input | OL6: input | OM6: input | ON6: input | OO6: input | OP6: iENGINE | OQ6: iENGINE | OR6: iENGINE | OS6: iENGINE | OT6: iENGINE | OU6: iENGINE | OV6: iENGINE | OW6: iENGINE | OX6: iENGINE | OY6: iENGINE | OZ6: iENGINE | PA6: iENGINE | PB6: iENGINE | PC6: iENGINE | PD6: iENGINE | PE6: iENGINE | PF6: iENGINE | PG6: iENGINE | PH6: iENGINE | PI6: iENGINE | PJ6: iENGINE
B7: flare_scenario | C7: MSOURCETYPE | D7: MTFA | E7: start_flare | F7: MSCREEN_MODEL | G7: MSCREEN_MET | H7: MSCREEN_TER | I7: MSCREEN_MOD | J7: user_screenmet | K7: op_name | L7: op_addr | M7: op_city | N7: op_pc | O7: op_contact | P7: op_phone | Q7: op_fax | R7: op_email | S7: con_name | T7: con_addr | U7: con_city | V7: con_pc | W7: con_contact | X7: con_phone | Y7: con_fax | Z7: con_email | AA7: well_name | AB7: well_license | AC7: well_id | AD7: well_oilgas | AE7: well_critical | AF7: well_formation | AG7: well_zones | AH7: well_lahee | AI7: well_sfcloc | AJ7: well_projection | AK7: well_utm | AL7: well_easting | AM7: well_northing | AN7: well_elev | AO7: well_lu | AP7: well_ops | AQ7: MFLMON | AR7: flare_totalvol | AS7: flare_duration | AT7: well_tiein | AU7: well_inline | AV7: well_prevappr | AW7: well_prevapprno | AX7: well_prevapprdate | AY7: flare_date1 | AZ7: flare_date2 | BA7: erp_rate | BB7: erp_dist | BC7: erp_required | BD7: erp_refno | BE7: fluid_rate | BF7: fluid_gor | BG7: flare_zone | BH7: flare_pollid | BI7: flare_pollname | BJ7: fUSER_EF | BK7: ef_name | BL7: ef_nox | BM7: ef_co | BN7: ef_voc | BO7: ef_pm25 | BP7: ef_user | BQ7: ef_rate_qmax | BR7: ef_rate_qave | BS7: ef_rate_qmin | BT7: flare_h2s | BU7: flare_hs | BV7: flare_ds | BW7: incin_type | BX7: incin_make | BY7: hburner | BZ7: diaburner | CA7: mraincap | CB7: heatloss_process | CC7: heatloss_stack | CD7: heatloss_stack_qave | CE7: heatloss_stack_qmin | CF7: heatloss_stack_qcrit | CG7: mblowdown | CH7: flare_maxrate | CI7: flare_zonevol | CJ7: flare_zonerate | CK7: flare_zoneduration | CL7: mtransient | CM7: press0 | CN7: temp0 | CO7: press1 | CP7: vessel_dia | CQ7: vessel_len | CR7: orifice_dia | CS7: dcoeff | CT7: user_qmax | CU7: user_qtotal | CV7: user_qave | CW7: pratio | CX7: tdep | CY7: mdist | CZ7: npuffs | DA7: pufdur | DB7: flare_ffuelgas | DC7: flare_fgr_max | DD7: flare_fgr_ave | DE7: flare_fgr_min | DF7: flare_fuel | DG7: excessair_max | DH7: excessair_ave | DI7: excessair_min | DJ7: well_lift | DK7: well_liftrate | DL7: flare_assist | DM7: flare_assist_steam | DN7: flare_assist_air | DO7: flare_assist_fuel | DP7: stm_nports | DQ7: stm_port_dia | DR7: stm_imassvol | DS7: stm_press | DT7: stm_temp | DU7: stm_max | DV7: stm_ave | DW7: stm_min | DX7: air_nports | DY7: air_port_dia | DZ7: air_max | EA7: air_ave | EB7: air_min | EC7: fuel_nports | ED7: fuel_port_dia | EE7: hpfuel_max | EF7: hpfuel_ave | EG7: hpfuel_min | EH7: raw_gas_h2o | EI7: raw_gas_h2 | EJ7: raw_gas_he | EK7: raw_gas_n2 | EL7: raw_gas_co2 | EM7: raw_gas_h2s | EN7: raw_gas_c1 | EO7: raw_gas_c2 | EP7: raw_gas_c3 | EQ7: raw_gas_ic4 | ER7: raw_gas_nc4 | ES7: raw_gas_ic5 | ET7: raw_gas_nc5 | EU7: raw_gas_nc6 | EV7: raw_gas_c7 | EW7: raw_gas_co | EX7: raw_gas_nh3 | EY7: raw_gas_ar | EZ7: raw_gas_o2 | FA7: raw_gas_location | FB7: lift_gas_h2o | FC7: lift_gas_h2 | FD7: lift_gas_he | FE7: lift_gas_n2 | FF7: lift_gas_co2 | FG7: lift_gas_h2s | FH7: lift_gas_c1 | FI7: lift_gas_c2 | FJ7: lift_gas_c3 | FK7: lift_gas_ic4 | FL7: lift_gas_nc4 | FM7: lift_gas_ic5 | FN7: lift_gas_nc5 | FO7: lift_gas_nc6 | FP7: lift_gas_c7 | FQ7: lift_gas_co | FR7: lift_gas_nh3 | FS7: lift_gas_ar | FT7: lift_gas_o2 | FU7: lift_gas_location | FV7: fuel_gas_h2o | FW7: fuel_gas_h2 | FX7: fuel_gas_he | FY7: fuel_gas_n2 | FZ7: fuel_gas_co2 | GA7: fuel_gas_h2s | GB7: fuel_gas_c1 | GC7: fuel_gas_c2 | GD7: fuel_gas_c3 | GE7: fuel_gas_ic4 | GF7: fuel_gas_nc4 | GG7: fuel_gas_ic5 | GH7: fuel_gas_nc5 | GI7: fuel_gas_nc6 | GJ7: fuel_gas_c7 | GK7: fuel_gas_co | GL7: fuel_gas_nh3 | GM7: fuel_gas_ar | GN7: fuel_gas_o2 | GO7: fuel_gas_location | GP7: terrain_map | GQ7: terrain_units | GR7: terrain_interval | GS7: terrain_surveyed | GT7: terrain_maxcontour | GU7: terrain_mm2max | GV7: zelev_dem | GW7: terrain_mm1 | GX7: terrain_mm2 | GY7: terrain_mm3 | GZ7: terrain_mm4 | HA7: terrain_mm5 | HB7: terrain_mm6 | HC7: terrain_mm7 | HD7: terrain_mm8 | HE7: terrain_mm9 | HF7: terrain_mm10 | HG7: terrain_mm11 | HH7: terrain_mm12 | HI7: terrain_mm13 | HJ7: terrain_mm14 | HK7: terrain_mm15 | HL7: terrain_mm16 | HM7: terrain_mm17 | HN7: terrain_mm18 | HO7: terrain_mm19 | HP7: terrain_mm20 | HQ7: terrain_mm21 | HR7: terrain_mm22 | HS7: terrain_mm23 | HT7: terrain_mm24 | HU7: terrain_mm25 | HV7: terr_utmx_00 | HW7: terr_utmx_01 | HX7: terr_utmx_02 | HY7: terr_utmx_03 | HZ7: terr_utmx_04 | IA7: terr_utmx_05 | IB7: terr_utmx_06 | IC7: terr_utmx_07 | ID7: terr_utmx_08 | IE7: terr_utmx_09 | IF7: terr_utmx_10 | IG7: terr_utmx_11 | IH7: terr_utmx_12 | II7: terr_utmx_13 | IJ7: terr_utmx_14 | IK7: terr_utmx_15 | IL7: terr_utmx_16 | IM7: terr_utmx_17 | IN7: terr_utmx_18 | IO7: terr_utmx_19 | IP7: terr_utmx_20 | IQ7: terr_utmx_21 | IR7: terr_utmx_22 | IS7: terr_utmx_23 | IT7: terr_utmx_24 | IU7: terr_utmx_25 | IV7: terr_utmy_00 | IW7: terr_utmy_01 | IX7: terr_utmy_02 | IY7: terr_utmy_03 | IZ7: terr_utmy_04 | JA7: terr_utmy_05 | JB7: terr_utmy_06 | JC7: terr_utmy_07 | JD7: terr_utmy_08 | JE7: terr_utmy_09 | JF7: terr_utmy_10 | JG7: terr_utmy_11 | JH7: terr_utmy_12 | JI7: terr_utmy_13 | JJ7: terr_utmy_14 | JK7: terr_utmy_15 | JL7: terr_utmy_16 | JM7: terr_utmy_17 | JN7: terr_utmy_18 | JO7: terr_utmy_19 | JP7: terr_utmy_20 | JQ7: terr_utmy_21 | JR7: terr_utmy_22 | JS7: terr_utmy_23 | JT7: terr_utmy_24 | JU7: terr_utmy_25 | JV7: terr_elev_00 | JW7: terr_elev_01 | JX7: terr_elev_02 | JY7: terr_elev_03 | JZ7: terr_elev_04 | KA7: terr_elev_05 | KB7: terr_elev_06 | KC7: terr_elev_07 | KD7: terr_elev_08 | KE7: terr_elev_09 | KF7: terr_elev_10 | KG7: terr_elev_11 | KH7: terr_elev_12 | KI7: terr_elev_13 | KJ7: terr_elev_14 | KK7: terr_elev_15 | KL7: terr_elev_16 | KM7: terr_elev_17 | KN7: terr_elev_18 | KO7: terr_elev_19 | KP7: terr_elev_20 | KQ7: terr_elev_21 | KR7: terr_elev_22 | KS7: terr_elev_23 | KT7: terr_elev_24 | KU7: terr_elev_25 | KV7: terr_dist_00 | KW7: terr_dist_01 | KX7: terr_dist_02 | KY7: terr_dist_03 | KZ7: terr_dist_04 | LA7: terr_dist_05 | LB7: terr_dist_06 | LC7: terr_dist_07 | LD7: terr_dist_08 | LE7: terr_dist_09 | LF7: terr_dist_10 | LG7: terr_dist_11 | LH7: terr_dist_12 | LI7: terr_dist_13 | LJ7: terr_dist_14 | LK7: terr_dist_15 | LL7: terr_dist_16 | LM7: terr_dist_17 | LN7: terr_dist_18 | LO7: terr_dist_19 | LP7: terr_dist_20 | LQ7: terr_dist_21 | LR7: terr_dist_22 | LS7: terr_dist_23 | LT7: terr_dist_24 | LU7: terr_dist_25 | LV7: note_01 | LW7: note_02 | LX7: note_03 | LY7: note_04 | LZ7: note_05 | MA7: note_06 | MB7: note_07 | MC7: note_08 | MD7: note_09 | ME7: note_10 | MF7: note_11 | MG7: note_12 | MH7: note_13 | MI7: note_14 | MJ7: note_15 | MK7: note_16 | ML7: note_17 | MM7: note_18 | MN7: note_19 | MO7: note_20 | MP7: note_21 | MQ7: note_22 | MR7: note_23 | MS7: note_24 | MT7: note_25 | MU7: note_26 | MV7: note_27 | MW7: note_28 | MX7: note_29 | MY7: note_30 | MZ7: note_31 | NA7: note_32 | NB7: note_33 | NC7: note_34 | ND7: note_35 | NE7: note_36 | NF7: note_37 | NG7: note_38 | NH7: ie_engineindex | NI7: ie_manufacturer | NJ7: ie_model | NK7: ie_idk | NL7: ie_energyin | NM7: ie_energyout | NN7: ie_fuelin | NO7: ie_jacketwater | NP7: ie_rad | NQ7: ie_lube | NR7: ie_cooler | NS7: ie_exhausttemp | NT7: ie_exhaustrate | NU7: ie_energyin_imp | NV7: ie_energyout_imp | NW7: ie_fuelin_imp | NX7: ie_jacketwater_imp | NY7: ie_rad_imp | NZ7: ie_lube_imp | OA7: ie_cooler_imp | OB7: ie_exhausttemp_imp | OC7: ie_exhaustrate_imp | OD7: ie_mat_1 | OE7: ie_mat_2 | OF7: ie_mat_3 | OG7: ie_mat_4 | OH7: ie_surf_1 | OI7: ie_surf_2 | OJ7: ie_surf_3 | OK7: ie_surf_4 | OL7: ie_thick_1 | OM7: ie_thick_2 | ON7: ie_thick_3 | OO7: ie_thick_4 | OP7: ie_adj_stackloss | OQ7: ie_tstt_qmax | OR7: ie_tave_qmax | OS7: ie_heatlossave_qmax | OT7: ie_dt_qmax | OU7: ie_iterations_qmax | OV7: ie_tstt_qave | OW7: ie_tave_qave | OX7: ie_heatlossave_qave | OY7: ie_dt_qave | OZ7: ie_iterations_qave | PA7: ie_tstt_qmin | PB7: ie_tave_qmin | PC7: ie_heatlossave_qmin | PD7: ie_dt_qmin | PE7: ie_iterations_qmin | PF7: ie_tstt_qcrit | PG7: ie_tave_qcrit | PH7: ie_heatlossave_qcrit | PI7: ie_dt_qcrit | PJ7: ie_iterations_qcrit
A8: =COUNTIF(A10:A1048576,"<0")+COUNTIF(A10:A1048576,">0") -> 0 | B8: Number of Scenarios set to Run | J8: iUSERMET | K8: DUTY HOLDER | S8: CONSULTANT (if applicable) | AA8: iFACILITY | BG8: iSOURCE | EH8: RAW GAS | FB8: LIFT GAS | FV8: FUEL GAS | GP8: iTERRAIN | LV8: iNOTES | NH8: iENGINE | OP8: iENGINE
A9: 0=skip; 1=run; 2='PRINT REQUIRED' after run (Use Negative numbers to save the spreadsheet after each row) | B9: Scenario Name | C9: Are these calculations for a FLARE source or an INCINERATOR source? 1: Flare 2: Incinerator | D9: Are these calculations for a Temporary Flaring/Incineration Permit? 1: Permit 2: Evaluation | E9: Flaring/Incineration Classification 1:Routine Continuous 2:Planned Non-Routine 3:Unplanned Non-Routine | F9: Analysis Type 1:AERSCREEN 2:AERSCREEN-(UserMet) 3:AERMOD-(UserTer,UserMet) 4:Create AERMOD files-(UserTer,UserMet) 5:AERSCREEN-(HBH) 6:AERSCREEN-(HBH,UserMet) 7:AERMOD-(HBH,UserTer,UserMet) 8:Create AERMOD files (HBH,UserTer,UserMet) | G9: Meteorological full path to use | H9: Terrain Insert full path to use | I9: MKEEP: AERMOD full path of base-name for output (using MKEEP, MKEEPOUT, MEXPORTOUT, or MODEL mode=4,8) | J9: Output path and file name for SCREENING+ met file | K9: Corporate Name | L9: Mailing Address | M9: City and Province | N9: Postal Code | O9: Contact Name | P9: Phone | Q9: Fax | R9: Email | S9: Corporate Name | T9: Mailing Address | U9: City and Province | V9: Postal Code | W9: Contact Name | X9: Phone | Y9: Fax | Z9: Email | AA9: Site Name (as per licence) | AB9: Licence Number | AC9: Unique Well Identifier | AD9: Oil or Gas ? 1=Yes, 2=No | AE9: Critical ? 1=Yes, 2=No | AF9: Formation(s) and Zone(s) to be Tested | AG9: Number of Zones to be Tested | AH9: Lahee Classification NFW NPW DPT OUT DEV REN DSW OV TH EX OTH | AI9: Surface Location (LSD-SEC-TWP-RGE W?M) | AJ9: 1=Geographic;2=10TM;3=UTM | AK9: UTM Zone (<0 is southern hemisphere;>0 is norther hemisphere) | AL9: Surface Coordinates of Flare | AM9: Surface Coordinates of Flare | AN9: Flare Base Elevation | AO9: Land Use Characterization 1=DEFAULT; 2=conifer forest; 3=grass land; 4=cultivated land; 5=deciduous forest; 6=swamp land; 7=urban; 8=water; 9=desert | AP9: Operations to be Conducted (cleanup/workover/testing/etc) | AQ9: Time of Year to Model the Flare (1=Annual,2=Jan,3=Feb,4=Mar,5=Apr,6=May,7=Jun,8=Jul, 9=Aug,10=Sep,11=Oct,12=Nov,13=Dec) | AR9: Total Volume of Raw Gas to be Flared during Clean-up and Testing of ALL Zones | AS9: Total Estimated Days with Flaring for ALL Zones | AT9: Is Well tied into Production Facilities? 1=Yes, 2=No | AU9: Information on the Feasibility of In-Line Well Testing Attached? 1=Yes, 2=No | AV9: Previous Flaring / Incineration Permits(s) for this location in last 12 months? 1=Yes, 2=No | AY9: Requested Permit Start Date | AZ9: Requested Permit End Date | BA9: H2S Release Rate | BB9: Emergency Response Planning Zone Distance | BC9: Is an ERP Required? 1=Yes, 2=No | BD9: ERP Reference Number | BE9: Anticipated Fluid Production | BF9: Gas to Fluid Ratio (for Oil Wells Only) | BG9: Subject Zone or Source of sour gas | BH9: Pollutant Emission ID 1: SO2 (or blank) 4: PM2.5 2: NOx 5: THC 3: CO 6: user specified | BI9: User Pollutant Name | BJ9: Emission Factor Group Number | BK9: Emission Factor Group Name | BL9: NOx, Emission Factor | BM9: CO, Emission Factor | BN9: VOC, Emission Factor | BO9: PM2.5, Emission Factor | BP9: User, Emission Factor | BQ9: User, QMAX Emission RATE | BR9: User, QAVE Emission RATE | BS9: User, QMIN Emission RATE | BT9: Requested Maximum Raw Gas H2S Concentration for Subject Zone | BU9: Stack Tip Exit Height | BV9: Stack Tip Exit Diameter | BW9: Incinerator Source Type 1=Incinerator; 2=Boiler; 3=Heater; 4=Engine; 5=Turbine | BX9: Incinerator Make and Model | BY9: Incinerator Burner Height | BZ9: Incinerator Stack Inside Diameter at Burner | CA9: StackType 1-Vertical; 2-Rain Cap; 3-Horizontal | CB9: Process Heat Loss | CC9: Stack Heat Loss QMAX | CD9: Stack Heat Loss QAVE | CE9: Stack Heat Loss QMIN | CF9: Stack Heat Loss Qcriterion | CG9: Flaring Type? 1: Steady or Continuous 2: Transient Blowdown | CH9: Maximum Raw Gas Flow Rate for Subject Zone | CI9: Volume of Raw Gas to be Flared for Subject Zone (enter 2 of: Volume, Rate or Duration. Calculates 3rd) | CJ9: Average Raw Gas Flaring Rate for Subject Zone (enter 2 of: Volume, Rate or Duration. Calculates 3rd) | CK9: Estimated Duration of Flaring for Subject Zone (enter 2 of: Volume, Rate or Duration. Calculates 3rd) | CL9: MTRANSIENT | CM9: Expected Maximum Initial Pressure, PRESS0 | CN9: Expected Minimum Initial Gas Temperature, TEMP0 | CO9: Expected Minimum Final Pressure, PRESS1 | CP9: Pipeline/Vessel Inside Diameter, VESSELDIA | CQ9: Pipeline/Vessel Length, VESSELLEN | CR9: Minimum Orifice Diameter, ORFDIA | CS9: Discharge Coefficient, DCOEF | CT9: User Initial maximum flow rate, QMAX | CU9: User Total volume within vessels/pipes, VOLUME TOTAL | CV9: Average Raw Gas Rate, Qave | CW9: Depressurization Ratio, P/Pinit | CX9: Time to Depressurization, Tdep | CY9: Select the way the blowdown curve is converted from a continuous curve to discrete steps | CZ9: User selected # of puffs, NPUFFS | DA9: User selected puff duration, PUFDUR | DB9: Is Fuel Gas Added? (excluding fuel gas to combust lift gas) | DC9: Fuel Gas to Raw Gas Volume Rate Ratio (default is zero, excludes fuel gas to combust lift gas) | DF9: Constant Rate Fuel Gas Flow Rate | DG9: Incinerator Excess Air | DJ9: Is CO2 or N2 used to Initiate Lift in Well? 1:NO 2:yes | DK9: Lift Gas (CO2 or N2) Flow Rate | DL9: Is Flare Assist Used? | DM9: Steam Assist? | DN9: Air Assist? | DO9: HP Fuel Assist? | DP9: Flare Assist: Number of Ports | DQ9: Flare Assist: Port Diameter of a Single Injector | DR9: Entry Mass Rate or Volume Rate? | DS9: Steam Assist Pressure | DT9: Steam Assist Temperature | DU9: Max Steam Assist | DV9: Ave Steam Assist | DW9: Min Steam Assist | DX9: Air Assist: Number of Ports | DY9: Air Assist: Port Diameter of a Single Injector | DZ9: Max Air Assist | EA9: Ave Air Assist | EB9: Min Air Assist | EC9: HP Fuel Assist: Number of Ports | ED9: HP Fuel Assist: Port Diameter of a Single Injector | EE9: Max HP fuel Assist | EF9: Ave HP fuel Assist | EG9: Min HP fuel Assist | EH9: Raw Gas | EI9: Raw Gas | EJ9: Raw Gas | EK9: Raw Gas | EL9: Raw Gas | EM9: Raw Gas | EN9: Raw Gas | EO9: Raw Gas | EP9: Raw Gas | EQ9: Raw Gas | ER9: Raw Gas | ES9: Raw Gas | ET9: Raw Gas | EU9: Raw Gas | EV9: Raw Gas | EW9: Raw Gas | EX9: Raw Gas | EY9: Raw Gas | EZ9: Raw Gas | FA9: Location Gas Analysis from | FB9: Lift Gas | FC9: Lift Gas | FD9: Lift Gas | FE9: Lift Gas | FF9: Lift Gas | FG9: Lift Gas | FH9: Lift Gas | FI9: Lift Gas | FJ9: Lift Gas | FK9: Lift Gas | FL9: Lift Gas | FM9: Lift Gas | FN9: Lift Gas | FO9: Lift Gas | FP9: Lift Gas | FQ9: Lift Gas | FR9: Lift Gas | FS9: Lift Gas | FT9: Lift Gas | FU9: Location Gas Analysis from | FV9: Fuel Gas | FW9: Fuel Gas | FX9: Fuel Gas | FY9: Fuel Gas | FZ9: Fuel Gas | GA9: Fuel Gas | GB9: Fuel Gas | GC9: Fuel Gas | GD9: Fuel Gas | GE9: Fuel Gas | GF9: Fuel Gas | GG9: Fuel Gas | GH9: Fuel Gas | GI9: Fuel Gas | GJ9: Fuel Gas | GK9: Fuel Gas | GL9: Fuel Gas | GM9: Fuel Gas | GN9: Fuel Gas | GO9: Location Gas Analysis from | GP9: 1:50,000 topographical map(s) for terrain within 7 km of flare | GQ9: Contour interval units of map with maximum elevation within 10 km | GR9: Contour interval of map with maximum elevation | GS9: Is maximum elevation a surveyed peak? | GT9: Maximum contour elevation or surveyed peak elevation within 10 km (200 mm radius on map) | GU9: Map distance from flare to centre of maximum contour or maximum surveyed peak elevation | GV9: Elevation of the flare/incinerator stack as determined by the DEM data | GW9: [mm] distance to contour Terrain Heights | GX9: [mm] distance to contour Terrain Heights | GY9: [mm] distance to contour Terrain Heights | GZ9: [mm] distance to contour Terrain Heights | HA9: [mm] distance to contour Terrain Heights | HB9: [mm] distance to contour Terrain Heights | HC9: [mm] distance to contour Terrain Heights | HD9: [mm] distance to contour Terrain Heights | HE9: [mm] distance to contour Terrain Heights | HF9: [mm] distance to contour Terrain Heights | HG9: [mm] distance to contour Terrain Heights | HH9: [mm] distance to contour Terrain Heights | HI9: [mm] distance to contour Terrain Heights | HJ9: [mm] distance to contour Terrain Heights | HK9: [mm] distance to contour Terrain Heights | HL9: [mm] distance to contour Terrain Heights | HM9: [mm] distance to contour Terrain Heights | HN9: [mm] distance to contour Terrain Heights | HO9: [mm] distance to contour Terrain Heights | HP9: [mm] distance to contour Terrain Heights | HQ9: [mm] distance to contour Terrain Heights | HR9: [mm] distance to contour Terrain Heights | HS9: [mm] distance to contour Terrain Heights | HT9: [mm] distance to contour Terrain Heights | HU9: [mm] distance to contour Terrain Heights | HV9: UTM X--Location of Worse-Case Terrain Contour | HW9: UTM X--Location of Worse-Case Terrain Contour | HX9: UTM X--Location of Worse-Case Terrain Contour | HY9: UTM X--Location of Worse-Case Terrain Contour | HZ9: UTM X--Location of Worse-Case Terrain Contour | IA9: UTM X--Location of Worse-Case Terrain Contour | IB9: UTM X--Location of Worse-Case Terrain Contour | IC9: UTM X--Location of Worse-Case Terrain Contour | ID9: UTM X--Location of Worse-Case Terrain Contour | IE9: UTM X--Location of Worse-Case Terrain Contour | IF9: UTM X--Location of Worse-Case Terrain Contour | IG9: UTM X--Location of Worse-Case Terrain Contour | IH9: UTM X--Location of Worse-Case Terrain Contour | II9: UTM X--Location of Worse-Case Terrain Contour | IJ9: UTM X--Location of Worse-Case Terrain Contour | IK9: UTM X--Location of Worse-Case Terrain Contour | IL9: UTM X--Location of Worse-Case Terrain Contour | IM9: UTM X--Location of Worse-Case Terrain Contour | IN9: UTM X--Location of Worse-Case Terrain Contour | IO9: UTM X--Location of Worse-Case Terrain Contour | IP9: UTM X--Location of Worse-Case Terrain Contour | IQ9: UTM X--Location of Worse-Case Terrain Contour | IR9: UTM X--Location of Worse-Case Terrain Contour | IS9: UTM X--Location of Worse-Case Terrain Contour | IT9: UTM X--Location of Worse-Case Terrain Contour | IU9: UTM X--Location of Worse-Case Terrain Contour | IV9: UTM Y--Location of Worse-Case Terrain Contour | IW9: UTM Y--Location of Worse-Case Terrain Contour | IX9: UTM Y--Location of Worse-Case Terrain Contour | IY9: UTM Y--Location of Worse-Case Terrain Contour | IZ9: UTM Y--Location of Worse-Case Terrain Contour | JA9: UTM Y--Location of Worse-Case Terrain Contour | JB9: UTM Y--Location of Worse-Case Terrain Contour | JC9: UTM Y--Location of Worse-Case Terrain Contour | JD9: UTM Y--Location of Worse-Case Terrain Contour | JE9: UTM Y--Location of Worse-Case Terrain Contour | JF9: UTM Y--Location of Worse-Case Terrain Contour | JG9: UTM Y--Location of Worse-Case Terrain Contour | JH9: UTM Y--Location of Worse-Case Terrain Contour | JI9: UTM Y--Location of Worse-Case Terrain Contour | JJ9: UTM Y--Location of Worse-Case Terrain Contour | JK9: UTM Y--Location of Worse-Case Terrain Contour | JL9: UTM Y--Location of Worse-Case Terrain Contour | JM9: UTM Y--Location of Worse-Case Terrain Contour | JN9: UTM Y--Location of Worse-Case Terrain Contour | JO9: UTM Y--Location of Worse-Case Terrain Contour | JP9: UTM Y--Location of Worse-Case Terrain Contour | JQ9: UTM Y--Location of Worse-Case Terrain Contour | JR9: UTM Y--Location of Worse-Case Terrain Contour | JS9: UTM Y--Location of Worse-Case Terrain Contour | JT9: UTM Y--Location of Worse-Case Terrain Contour | JU9: UTM Y--Location of Worse-Case Terrain Contour | JV9: Elevation--Location of Worse-Case Terrain Contour | JW9: Elevation--Location of Worse-Case Terrain Contour | JX9: Elevation--Location of Worse-Case Terrain Contour | JY9: Elevation--Location of Worse-Case Terrain Contour | JZ9: Elevation--Location of Worse-Case Terrain Contour | KA9: Elevation--Location of Worse-Case Terrain Contour | KB9: Elevation--Location of Worse-Case Terrain Contour | KC9: Elevation--Location of Worse-Case Terrain Contour | KD9: Elevation--Location of Worse-Case Terrain Contour | KE9: Elevation--Location of Worse-Case Terrain Contour | KF9: Elevation--Location of Worse-Case Terrain Contour | KG9: Elevation--Location of Worse-Case Terrain Contour | KH9: Elevation--Location of Worse-Case Terrain Contour | KI9: Elevation--Location of Worse-Case Terrain Contour | KJ9: Elevation--Location of Worse-Case Terrain Contour | KK9: Elevation--Location of Worse-Case Terrain Contour | KL9: Elevation--Location of Worse-Case Terrain Contour | KM9: Elevation--Location of Worse-Case Terrain Contour | KN9: Elevation--Location of Worse-Case Terrain Contour | KO9: Elevation--Location of Worse-Case Terrain Contour | KP9: Elevation--Location of Worse-Case Terrain Contour | KQ9: Elevation--Location of Worse-Case Terrain Contour | KR9: Elevation--Location of Worse-Case Terrain Contour | KS9: Elevation--Location of Worse-Case Terrain Contour | KT9: Elevation--Location of Worse-Case Terrain Contour | KU9: Elevation--Location of Worse-Case Terrain Contour | KV9: Distance--Location of Worse-Case Terrain Contour | KW9: Distance--Location of Worse-Case Terrain Contour | KX9: Distance--Location of Worse-Case Terrain Contour | KY9: Distance--Location of Worse-Case Terrain Contour | KZ9: Distance--Location of Worse-Case Terrain Contour | LA9: Distance--Location of Worse-Case Terrain Contour | LB9: Distance--Location of Worse-Case Terrain Contour | LC9: Distance--Location of Worse-Case Terrain Contour | LD9: Distance--Location of Worse-Case Terrain Contour | LE9: Distance--Location of Worse-Case Terrain Contour | LF9: Distance--Location of Worse-Case Terrain Contour | LG9: Distance--Location of Worse-Case Terrain Contour | LH9: Distance--Location of Worse-Case Terrain Contour | LI9: Distance--Location of Worse-Case Terrain Contour | LJ9: Distance--Location of Worse-Case Terrain Contour | LK9: Distance--Location of Worse-Case Terrain Contour | LL9: Distance--Location of Worse-Case Terrain Contour | LM9: Distance--Location of Worse-Case Terrain Contour | LN9: Distance--Location of Worse-Case Terrain Contour | LO9: Distance--Location of Worse-Case Terrain Contour | LP9: Distance--Location of Worse-Case Terrain Contour | LQ9: Distance--Location of Worse-Case Terrain Contour | LR9: Distance--Location of Worse-Case Terrain Contour | LS9: Distance--Location of Worse-Case Terrain Contour | LT9: Distance--Location of Worse-Case Terrain Contour | LU9: Distance--Location of Worse-Case Terrain Contour | LV9: Note | LW9: Note | LX9: Note | LY9: Note | LZ9: Note | MA9: Note | MB9: Note | MC9: Note | MD9: Note | ME9: Note | MF9: Note | MG9: Note | MH9: Note | MI9: Note | MJ9: Note | MK9: Note | ML9: Note | MM9: Note | MN9: Note | MO9: Note | MP9: Note | MQ9: Note | MR9: Note | MS9: Note | MT9: Note | MU9: Note | MV9: Note | MW9: Note | MX9: Note | MY9: Note | MZ9: Note | NA9: Note | NB9: Note | NC9: Note | ND9: Note | NE9: Note | NF9: Note | NG9: Note | NH9: Index | NI9: Manufacturer | NJ9: Model | NK9: Engine is not listed, or 'All I know is Energy Rating' | NL9: Energy (in) | NM9: Energy (out) | NN9: Fuel (in) | NO9: Heat to Jacket Water | NP9: Heat to Atmosphere/Radiation | NQ9: Heat to Lube Oil | NR9: Heat to Intercooler/Aftercooler | NS9: exhaust temp | NT9: exhaust rate | NU9: Energy (in) | NV9: Energy (out) | NW9: Fuel (in) | NX9: Heat to Jacket Water | NY9: Heat to Atmosphere/Radiation | NZ9: Heat to Lube Oil | OA9: Heat to Intercooler/Aftercooler | OB9: exhaust temp | OC9: exhaust rate | OD9: Material Reference ID | OE9: Material Reference ID | OF9: Material Reference ID | OG9: Material Reference ID | OH9: Surface Reference ID for Emissivity | OI9: Surface Reference ID for Emissivity | OJ9: Surface Reference ID for Emissivity | OK9: Surface Reference ID for Emissivity | OL9: Thickness | OM9: Thickness | ON9: Thickness | OO9: Thickness | OP9: Stack losses based upon ratings | OQ9: Stack Top Temperature, Qmax | OR9: Stack Ave Temp, Qmax | OS9: Heat flow (ave), Qmax | OT9: Delta T, Qmax | OU9: Iterations, Qmax | OV9: Stack Top Temperature, Qave | OW9: Stack Ave Temp, Qave | OX9: Heat flow (ave), Qave | OY9: Delta T, Qave | OZ9: Iterations, Qave | PA9: Stack Top Temperature, Qmin | PB9: Stack Ave Temp, Qmin | PC9: Heat flow (ave), Qmin | PD9: Delta T, Qmin | PE9: Iterations, Qmin | PF9: Stack Top Temperature, Qcrit | PG9: Stack Ave Temp, Qcrit | PH9: Heat flow (ave), Qcrit | PI9: Delta T, Qcrit | PJ9: Iterations, Qcrit
A10: Run | B10: -- | C10: 1: Flare 2: Incinerator | D10: 1: Permit 2: Evaluation | E10: 1: Routine 2: Non-Routine 3: Unplanned Non-Routine | F10: -- | G10: -- | H10: -- | I10: -- | J10: -- | K10: -- | L10: -- | M10: -- | N10: -- | O10: -- | P10: -- | Q10: -- | R10: -- | S10: -- | T10: -- | U10: -- | V10: -- | W10: -- | X10: -- | Y10: -- | Z10: -- | AA10: -- | AB10: -- | AC10: -- | AD10: -- | AE10: -- | AF10: -- | AG10: -- | AH10: -- | AI10: -- | AJ10: -- | AK10: -- | AL10: X coord (m W) or Longitude | AM10: Y coord (m N) or Latitude | AN10: m | AO10: -- | AP10: -- | AQ10: -- | AR10: 10³m³ (15°C and 101.325 kPa) | AS10: days | AT10: 1: Yes 2: No | AU10: 1: Yes 2: No | AV10: 1: Yes 2: No | AW10: Permit Number(s) | AX10: Date(s) | AY10: mm/dd/yyyy (best-case) | AZ10: mm/dd/yyyy (worst-case) | BA10: m³/s (15°C,101.325 kPa) | BB10: km | BC10: -- | BD10: -- | BE10: m³/d | BF10: m³ Gas/m³ Fluid | BG10: -- | BH10: -- | BI10: -- | BJ10: -- | BK10: -- | BL10: g/GJ | BM10: g/GJ | BN10: g/GJ | BO10: g/GJ | BP10: g/GJ | BQ10: g/s | BR10: g/s | BS10: g/s | BT10: Fraction, (for Permits round up to 0.5% increment) | BU10: m | BV10: mm | BW10: -- | BY10: m | BZ10: mm | CA10: -- | CB10: fraction of input Energy | CC10: fraction of input Energy | CD10: fraction of input Energy | CE10: fraction of input Energy | CF10: fraction of input Energy | CG10: -- | CH10: 10³m³/d (15°C and 101.325 kPa) | CI10: 10³m³ (15°C and 101.325 kPa) | CJ10: 10³m³/d (15°C and 101.325 kPa) | CK10: hours | CL10: -- | CM10: kPa (gauge) | CN10: °C | CO10: kPa (gauge) | CP10: m | CQ10: m | CR10: mm | CS10: -- | CT10: 10³m³/d (15°C and 101.325 kPa) | CU10: 10³m³ (15°C and 101.325 kPa) | CV10: 10³m³/d (15°C and 101.325 kPa) | CW10: -- | CX10: min | CY10: 1: Equal Mass 2: Equal Duration | CZ10: -- | DA10: minutes | DB10: 1: Yes 2: No | DC10: for Maximum Rate | DD10: for Average Rate | DE10: for Maximum Rate/8 (Minimum) | DF10: 10³m³/d (15°C and 101.325 kPa) | DG10: for Maximum Rate | DH10: for Average Rate | DI10: for Maximum Rate/8 (Minimum) | DJ10: 1: Yes 2: No | DK10: 10³m³/d (15°C, 101.325 kPa) | DL10: 1: Yes 2: No | DM10: True or False | DN10: True or False | DO10: True or False | DP10: -- | DQ10: mm | DR10: 1:Mass 2: Volume | DS10: kPa (Gauge) | DT10: °C | DU10: kg/s or e3m3/d | DV10: kg/s or e3m3/d | DW10: kg/s or e3m3/d | DX10: -- | DY10: mm | DZ10: e3m3/d | EA10: e3m3/d | EB10: e3m3/d | EC10: -- | ED10: mm | EE10: e3m3/d | EF10: e3m3/d | EG10: e3m3/d | EH10: H2O | EI10: H2 | EJ10: He | EK10: N2 | EL10: CO2 | EM10: H2S | EN10: CH4 | EO10: C2H6 | EP10: C3H8 | EQ10: i-C4H10 | ER10: n-C4H10 | ES10: i-C5H12 | ET10: n-C5H12 | EU10: n-C6H14 | EV10: C7+ | EW10: CO | EX10: NH3 | EY10: Ar | EZ10: O2 | FA10: Location Gas Analysis from | FB10: H2O | FC10: H2 | FD10: He | FE10: N2 | FF10: CO2 | FG10: H2S | FH10: CH4 | FI10: C2H6 | FJ10: C3H8 | FK10: i-C4H10 | FL10: n-C4H10 | FM10: i-C5H12 | FN10: n-C5H12 | FO10: n-C6H14 | FP10: C7+ | FQ10: CO | FR10: NH3 | FS10: Ar | FT10: O2 | FU10: Location Gas Analysis from | FV10: H2O | FW10: H2 | FX10: He | FY10: N2 | FZ10: CO2 | GA10: H2S | GB10: CH4 | GC10: C2H6 | GD10: C3H8 | GE10: i-C4H10 | GF10: n-C4H10 | GG10: i-C5H12 | GH10: n-C5H12 | GI10: n-C6H14 | GJ10: C7+ | GK10: CO | GL10: NH3 | GM10: Ar | GN10: O2 | GO10: Location Gas Analysis from | GP10: (e.g., 82 O/1) | GQ10: -- | GR10: metres | GS10: -- | GT10: metres | GU10: mm | GV10: metres | GW10: 1 | GX10: 2 | GY10: 3 | GZ10: 4 | HA10: 5 | HB10: 6 | HC10: 7 | HD10: 8 | HE10: 9 | HF10: 10 | HG10: 11 | HH10: 12 | HI10: 13 | HJ10: 14 | HK10: 15 | HL10: 16 | HM10: 17 | HN10: 18 | HO10: 19 | HP10: 20 | HQ10: 21 | HR10: 22 | HS10: 23 | HT10: 24 | HU10: 25 | HV10: 0 | HW10: 1 | HX10: 2 | HY10: 3 | HZ10: 4 | IA10: 5 | IB10: 6 | IC10: 7 | ID10: 8 | IE10: 9 | IF10: 10 | IG10: 11 | IH10: 12 | II10: 13 | IJ10: 14 | IK10: 15 | IL10: 16 | IM10: 17 | IN10: 18 | IO10: 19 | IP10: 20 | IQ10: 21 | IR10: 22 | IS10: 23 | IT10: 24 | IU10: 25 | IV10: 0 | IW10: 1 | IX10: 2 | IY10: 3 | IZ10: 4 | JA10: 5 | JB10: 6 | JC10: 7 | JD10: 8 | JE10: 9 | JF10: 10 | JG10: 11 | JH10: 12 | JI10: 13 | JJ10: 14 | JK10: 15 | JL10: 16 | JM10: 17 | JN10: 18 | JO10: 19 | JP10: 20 | JQ10: 21 | JR10: 22 | JS10: 23 | JT10: 24 | JU10: 25 | JV10: 0 | JW10: 1 | JX10: 2 | JY10: 3 | JZ10: 4 | KA10: 5 | KB10: 6 | KC10: 7 | KD10: 8 | KE10: 9 | KF10: 10 | KG10: 11 | KH10: 12 | KI10: 13 | KJ10: 14 | KK10: 15 | KL10: 16 | KM10: 17 | KN10: 18 | KO10: 19 | KP10: 20 | KQ10: 21 | KR10: 22 | KS10: 23 | KT10: 24 | KU10: 25 | KV10: 0 | KW10: 1 | KX10: 2 | KY10: 3 | KZ10: 4 | LA10: 5 | LB10: 6 | LC10: 7 | LD10: 8 | LE10: 9 | LF10: 10 | LG10: 11 | LH10: 12 | LI10: 13 | LJ10: 14 | LK10: 15 | LL10: 16 | LM10: 17 | LN10: 18 | LO10: 19 | LP10: 20 | LQ10: 21 | LR10: 22 | LS10: 23 | LT10: 24 | LU10: 25 | LV10: 1 | LW10: 2 | LX10: 3 | LY10: 4 | LZ10: 5 | MA10: 6 | MB10: 7 | MC10: 8 | MD10: 9 | ME10: 10 | MF10: 11 | MG10: 12 | MH10: 13 | MI10: 14 | MJ10: 15 | MK10: 16 | ML10: 17 | MM10: 18 | MN10: 19 | MO10: 20 | MP10: 21 | MQ10: 22 | MR10: 23 | MS10: 24 | MT10: 25 | MU10: 26 | MV10: 27 | MW10: 28 | MX10: 29 | MY10: 30 | MZ10: 31 | NA10: 32 | NB10: 33 | NC10: 34 | ND10: 35 | NE10: 36 | NF10: 37 | NG10: 38 | NH10: -- | NI10: -- | NJ10: -- | NK10: TRUE or FALSE | NL10: kW | NM10: kW | NN10: (kJ/h)/kW | NO10: kW | NP10: kW | NQ10: kW | NR10: kW | NS10: C | NT10: kg/s | NU10: MMBTU/h | NV10: hp | NW10: (BTU/h)/HP | NX10: BTU/min | NY10: BTU/min | NZ10: BTU/min | OA10: BTU/min | OB10: F | OC10: lb/h | OD10: Sleeve (inner) | OE10: Sleeve 2 | OF10: Sleeve 3 | OG10: Sleeve 4 | OH10: Sleeve (inner) | OI10: Sleeve 2 | OJ10: Sleeve 3 | OK10: Sleeve 4 | OL10: Sleeve (inner) (mm) | OM10: Sleeve 2 (mm) | ON10: Sleeve 3 (mm) | OO10: Sleeve 4 (mm) | OP10: % | OQ10: K | OR10: K | OS10: kW | OT10: C | OU10: -- | OV10: K | OW10: K | OX10: kW | OY10: C | OZ10: -- | PA10: K | PB10: K | PC10: kW | PD10: C | PE10: -- | PF10: K | PG10: K | PH10: kW | PI10: C | PJ10: --
A11: 0 | B11: Example 1-Same as ERCBflarev1.05 Released | C11: 1 | D11: 1 | E11: 2 | F11: 5 | G11: P:\ERCBtools\AERflare\AERflare-incin-MetFiles_v4_170805\v4\DECID.sfc | H11: <screening> | I11: <temporary> | K11: Energy Inc | L11: 123-4ave, SW | M11: Calgary, AB | N11: A1B 2C3 | O11: John Smith | P11: (403) 123-4567 | Q11: (403) 123-4567 | R11: email@co.com | S11: Air Consulting Co. | T11: 978-6st NW | U11: Calgary, AB | V11: A1B 2C3 | W11: A.B. Dunrite | X11: (403) 111-1111 | Y11: xxx | Z11: dunrite@airco.com | AA11: ICKMAK 01-02-003-04-W5M | AB11: 123456 | AC11: 100/01-02-003-04-W5M/02 | AD11: 2 | AE11: 2 | AF11: Leduc | AG11: 1 | AH11: REN | AI11: 01-02-003-04-W5M | AJ11: 3 | AK11: 11 | AL11: 481234 | AM11: 6112345 | AN11: 655.8701328 | AO11: 1 | AQ11: 1 | AR11: 22.5 | AS11: 8 | AT11: 1 | AU11: 1 | AV11: 2 | AY11: 41214 | AZ11: 41273 | BA11: 0.01669 | BB11: 0.07 | BC11: 2 | BE11: 43.7 | BF11: 110 | BG11: Leduc | BH11: 1 | BK11: EPA-Flaring | BL11: 29.23462476 | BM11: 133.2754952 | BN11: 60.18893333 | BO11: 51.59051428 | BQ11: 1 | BR11: 2 | BS11: 3 | BT11: 0.301 | BU11: 30.5 | BV11: 305 | CA11: 1 | CG11: 1 | CH11: 250 | CI11: 400 | CJ11: 125 | CL11: 0 | DB11: 1 | DC11: 0 | DD11: 0.1 | DE11: 0.2 | DJ11: 2 | DL11: 2 | EN11: 1 | FA11: ICKMAK 01-02-003-04-W5M (100/01-02-003-04-W5M/02) 14-Mar-2008 | FE11: 1 | FU11: xxx | GD11: 1 | GO11: xxx | GP11: 083n03 | GQ11: 1 | GR11: 10 | GS11: 1 | GT11: 798 | GU11: 151.7472239 | GV11: 669.6114319 | GW11: 2.004473721 | GX11: 16.44369012 | GY11: 39.08513587 | GZ11: 50.67587535 | HA11: 59.72238596 | HB11: 66.5939581 | HC11: 75.28385125 | HD11: 83.64806313 | HE11: 90.04579008 | HF11: 96.58284158 | HG11: 107.5981682 | HH11: 124.3969705 | HI11: 140.1236627 | HJ11: 151.7472239 | HV11: 481234 | HW11: 481177.0486 | HX11: 480621.5503 | HY11: 480374.6875 | HZ11: 479325.9843 | IA11: 478875.5913 | IB11: 478678.0012 | IC11: 478307.6246 | ID11: 477870.3759 | IE11: 477512.3987 | IF11: 477167.815 | IG11: 476865.4558 | IH11: 476632.1709 | II11: 476078.1622 | IJ11: 475763.583 | IV11: 6112345 | IW11: 6112427.47 | IX11: 6112893.537 | IY11: 6114100.193 | IZ11: 6114012.209 | JA11: 6114176.616 | JB11: 6114478.954 | JC11: 6114712.588 | JD11: 6114830.665 | JE11: 6114878.83 | JF11: 6114950.14 | JG11: 6115484.942 | JH11: 6116529.458 | JI11: 6117088.832 | JJ11: 6117762.885 | JV11: 669.6114319 | JW11: 670 | JX11: 680 | JY11: 690 | JZ11: 700 | KA11: 710 | KB11: 720 | KC11: 730 | KD11: 740 | KE11: 750 | KF11: 760 | KG11: 770 | KH11: 780 | KI11: 790 | KJ11: 798 | KV11: 0 | KW11: 100.2236861 | KX11: 822.1845061 | KY11: 1954.256793 | KZ11: 2533.793767 | LA11: 2986.119298 | LB11: 3329.697905 | LC11: 3764.192563 | LD11: 4182.403156 | LE11: 4502.289504 | LF11: 4829.142079 | LG11: 5379.908412 | LH11: 6219.848525 | LI11: 7006.183136 | LJ11: 7699.282002 | LV11: Delay this application | LW11: Delay this application | LX11: Delay this application | LY11: Delay this application | OQ11: 585.4281449 | OR11: 590.5049536 | OS11: 556.3702322 | OT11: -10.15361729 | OU11: 6 | OV11: 579.5943222 | OW11: 587.5880422 | OX11: 437.7474454 | OY11: -15.98744005 | OZ11: 5 | PA11: 561.8975955 | PB11: 578.7396789 | PC11: 230.1443714 | PD11: -33.68416671 | PE11: 4 | PF11: 579.5941775 | PG11: 587.5879699 | PH11: 437.7514442 | PI11: -15.9875847 | PJ11: 5
A12: 0 | B12: Example 2-Site A | C12: 1 | D12: 1 | E12: 2 | F12: 5 | G12: P:\ERCBtools\AERflare\metfiles\v3\DECID.sfc | H12: <screening> | I12: <temporary> | K12: Energy Inc | L12: 123-4ave, SW | M12: Calgary, AB | N12: A1B 2C3 | O12: John Smith | P12: (403) 123-4567 | Q12: (403) 123-4567 | R12: email@co.com | S12: Air Consulting Co. | T12: 978-6st NW | U12: Calgary, AB | V12: A1B 2C3 | W12: A.B. Dunrite | X12: (403) 111-1111 | Y12: xxx | Z12: dunrite@airco.com | AA12: ICKMAK 01-02-003-04-W5M | AB12: 123456 | AC12: 100/01-02-003-04-W5M/02 | AD12: 2 | AE12: 2 | AF12: Leduc | AG12: 1 | AH12: REN | AI12: 01-02-003-04-W5M | AJ12: 3 | AK12: 11 | AL12: 481234 | AM12: 6112345 | AN12: 655.8701328 | AO12: 1 | AQ12: 1 | AR12: 22.5 | AS12: 8 | AT12: 1 | AU12: 1 | AV12: 2 | AY12: 41214 | AZ12: 41258 | BA12: 0.01669 | BB12: 0.07 | BC12: 2 | BE12: 43.7 | BF12: 110 | BG12: Leduc | BT12: 0.16 | BU12: 27.432 | BV12: 102 | CA12: 1 | CG12: 1 | CH12: 15 | CJ12: 7.5 | CK12: 72 | CL12: 0 | DB12: 2 | DJ12: 2 | DL12: 2 | EH12: 0 | EI12: 0 | EJ12: 0.0053 | EK12: 0.0629 | EL12: 0.0266 | EM12: 0.146 | EN12: 0.6248 | EO12: 0.0672 | EP12: 0.0415 | EQ12: 0.0047 | ER12: 0.0134 | ES12: 0.0027 | ET12: 0.0026 | EU12: 0.0007 | EV12: 0.0016 | EW12: 0 | EX12: 0 | EY12: 0 | FA12: ICKMAK 01-02-003-04-W5M (100/01-02-003-04-W5M/02) 14-Mar-2008 | FE12: 1 | FU12: xxx | GD12: 1 | GO12: xxx | GP12: 083n03 | GQ12: 1 | GR12: 10 | GS12: 1 | GT12: 798 | GU12: 151.7472239 | GW12: 0.2263085412 | GX12: 2.004473721 | GY12: 16.44369012 | GZ12: 39.08513587 | HA12: 50.67587535 | HB12: 59.72238596 | HC12: 66.5939581 | HD12: 75.28385125 | HE12: 83.64806313 | HF12: 90.04579008 | HG12: 96.58284158 | HH12: 107.5981682 | HI12: 124.3969705 | HJ12: 140.1236627
A13: 0 | B13: Example 3-Site B | C13: 1 | D13: 1 | E13: 2 | F13: 4 | K13: Energy Inc | L13: 123-4ave, SW | M13: Calgary, AB | N13: A1B 2C3 | O13: John Smith | P13: (403) 123-4567 | Q13: (403) 123-4567 | R13: email@co.com | S13: Air Consulting Co. | T13: 978-6st NW | U13: Calgary, AB | V13: A1B 2C3 | W13: A.B. Dunrite | X13: (403) 111-1111 | Y13: xxx | Z13: dunrite@airco.com | AA13: ICKMAK 01-02-003-04-W5M | AB13: 123456 | AC13: 100/01-02-003-04-W5M/02 | AD13: 2 | AE13: 2 | AF13: Leduc | AG13: 1 | AH13: REN | AI13: 01-02-003-04-W5M | AJ13: 3 | AK13: 11 | AL13: 534924 | AM13: 5883142 | AN13: 1194 | AO13: 1 | AQ13: 1 | AT13: 1 | AU13: 1 | AV13: 2 | BA13: 0.583 | BB13: 1.01 | BC13: 2 | BE13: 43.7 | BF13: 110 | BG13: Leduc | BT13: 0.42 | BU13: 30.5 | BV13: 203 | CA13: 1 | CG13: 2 | CH13: 60 | CI13: 150 | CJ13: 30 | CL13: 1 | CM13: 4200 | CN13: 30 | CO13: 0 | CP13: 0.4364 | CQ13: 25100 | CR13: 204 | CS13: 0.6 | CY13: 2 | DB13: 2 | DJ13: 2 | DL13: 2 | EH13: 0 | EI13: 0.0003 | EJ13: 0.0001 | EK13: 0.004 | EL13: 0.0908 | EM13: 0.4178 | EN13: 0.48 | EO13: 0.0044 | EP13: 0.0011 | EQ13: 0.0003 | ER13: 0.0003 | ES13: 0.0001 | ET13: 0.0001 | EU13: 0.0002 | EV13: 0.0005 | EW13: 0 | EX13: 0 | EY13: 0 | FA13: ICKMAK 01-02-003-04-W5M (100/01-02-003-04-W5M/02) 14-Mar-2008 | FE13: 1 | FU13: xxx | GD13: 1 | GO13: xxx | GP13: 083f02;083f01 | GQ13: 1 | GR13: 4 | GS13: 1 | GT13: 1293 | GU13: 196.3681743 | GW13: 12.53389647 | GX13: 17.5646358 | GY13: 31.22383758 | GZ13: 34.95991587 | HA13: 42.48243576 | HB13: 44.33697904 | HC13: 46.18403055 | HD13: 49.38647661 | HE13: 61.8179248 | HF13: 64.52177154 | HG13: 66.95888004 | HH13: 74.01429541 | HI13: 76.39810263 | HJ13: 79.50343662 | HK13: 82.3400228 | HL13: 92.17370002 | HM13: 97.3853325 | HN13: 109.4525729 | HO13: 116.6863165 | HP13: 117.8469132 | HQ13: 120.3330872 | HR13: 154.2849734 | HS13: 168.41401 | HT13: 196.3681743
A14: 0 | B14: Example 4-Site C | C14: 1 | D14: 1 | E14: 2 | F14: 6 | K14: Energy Inc | L14: 123-4ave, SW | M14: Calgary, AB | N14: A1B 2C3 | O14: John Smith | P14: (403) 123-4567 | Q14: (403) 123-4567 | R14: email@co.com | S14: Air Consulting Co. | T14: 978-6st NW | U14: Calgary, AB | V14: A1B 2C3 | W14: A.B. Dunrite | X14: (403) 111-1111 | Y14: xxx | Z14: dunrite@airco.com | AA14: Site C | AB14: 123456 | AC14: 100/01-02-003-04-W5M/02 | AD14: 2 | AE14: 2 | AF14: Leduc | AG14: 1 | AH14: REN | AI14: 01-02-003-04-W5M | AJ14: 3 | AK14: 11 | AL14: 688183 | AM14: 5513080 | AN14: 1878.4 | AO14: 1 | AQ14: 1 | AT14: 1 | AU14: 1 | AV14: 2 | BA14: 0.583 | BB14: 1.01 | BC14: 2 | BE14: 43.7 | BF14: 110 | BG14: Leduc | BT14: 0.275 | BU14: 36.59999847 | BV14: 154 | CA14: 1 | CG14: 1 | CH14: 90 | CJ14: 45 | CK14: 1 | CL14: 0 | DB14: 1 | DC14: 0.95 | DD14: 0.95 | DE14: 0.95 | DJ14: 2 | DL14: 2 | EH14: 0 | EI14: 0.0002 | EJ14: 0.0001 | EK14: 0.0197 | EL14: 0.07 | EM14: 0.275 | EN14: 0.6328 | EO14: 0.0014 | EP14: 0.0002 | EQ14: 0.0001 | ER14: 0.0001 | ES14: 0.0001 | ET14: 0.0001 | EU14: 0.0001 | EV14: 0.0001 | EW14: 0 | EX14: 0 | EY14: 0 | FA14: ICKMAK 01-02-003-04-W5M (100/01-02-003-04-W5M/02) 14-Mar-2008 | FE14: 1 | FU14: xxx | GD14: 1 | GO14: xxx | GP14: xxx | GQ14: 1 | GR14: 50 | GS14: 1 | GT14: 2516 | GU14: 72.34 | GW14: 1.38974 | GX14: 4.34919 | GY14: 6.35897 | GZ14: 8.48278 | HA14: 17.6291 | HB14: 22.078 | HC14: 35.6325 | HD14: 37.8576 | HE14: 40.0839 | HF14: 42.5617 | HG14: 44.7775 | HH14: 67.8241 | HI14: 71.5773

Sheet oBATCH
A1: oBATCH Page
A2: Batch automation processing outputs
JW5: 10101 | JX5: =1+JW5 -> 10102 | JY5: =1+JX5 -> 10103 | JZ5: 10104 | KA5: 10105 | KB5: 10106 | KC5: 10107 | KD5: 10108 | KE5: 10109 | KF5: 10110 | KG5: 10111 | KH5: 10112 | KI5: 10113 | KJ5: 10114 | KK5: 10115 | KL5: 10116 | KM5: 10117 | KN5: 10118 | KO5: 10119 | KP5: 10120 | KQ5: 10121 | KR5: 10122 | KS5: =100+JW5 -> 10201 | KT5: =100+JX5 -> 10202 | KU5: 10203 | KV5: 10204 | KW5: 10205 | KX5: 10206 | KY5: 10207 | KZ5: 10208 | LA5: 10209 | LB5: 10210 | LC5: 10211 | LD5: 10212 | LE5: 10213 | LF5: 10214 | LG5: 10215 | LH5: 10216 | LI5: 10217 | LJ5: 10218 | LK5: 10219 | LL5: 10220 | LM5: 10221 | LN5: 10222 | LO5: 10301 | LP5: 10302 | LQ5: 10303 | LR5: 10304 | LS5: 10305 | LT5: 10306 | LU5: 10307 | LV5: 10308 | LW5: 10309 | LX5: 10310 | LY5: 10311 | LZ5: 10312 | MA5: 10313 | MB5: 10314 | MC5: 10315 | MD5: =100+LO5 -> 10401 | ME5: =100+LP5 -> 10402 | MF5: =100+LQ5 -> 10403 | MG5: =100+LR5 -> 10404 | MH5: =100+LS5 -> 10405 | MI5: =10000+JW5 -> 20101 | MJ5: =10000+JX5 -> 20102 | MK5: 20103 | ML5: 20104 | MM5: 20105 | MN5: 20106 | MO5: 20107 | MP5: 20108 | MQ5: 20109 | MR5: 20110 | MS5: 20111 | MT5: 20112 | MU5: 20113 | MV5: 20114 | MW5: 20115 | MX5: 20116 | MY5: 20117 | MZ5: 20118 | NA5: 20119 | NB5: 20120 | NC5: 20121 | ND5: 20122 | NE5: =10000+KS5 -> 20201 | NF5: 20202 | NG5: 20203 | NH5: 20204 | NI5: 20205 | NJ5: 20206 | NK5: 20207 | NL5: 20208 | NM5: 20209 | NN5: 20210 | NO5: 20211 | NP5: 20212 | NQ5: 20213 | NR5: 20214 | NS5: 20215 | NT5: 20216 | NU5: 20217 | NV5: 20218 | NW5: 20219 | NX5: 20220 | NY5: 20221 | NZ5: 20222 | OA5: 20301 | OB5: 20302 | OC5: 20303 | OD5: 20304 | OE5: 20305 | OF5: 20306 | OG5: 20307 | OH5: 20308 | OI5: 20309 | OJ5: 20310 | OK5: 20311 | OL5: 20312 | OM5: 20313 | ON5: 20314 | OO5: 20315 | OP5: 20401 | OQ5: 20402 | OR5: 20403 | OS5: 20404 | OT5: 20405 | OU5: 30101 | OV5: 30102 | OW5: 30103 | OX5: 30104 | OY5: 30105 | OZ5: 30106 | PA5: 30107 | PB5: 30108 | PC5: 30109 | PD5: 30110 | PE5: 30111 | PF5: 30112 | PG5: 30113 | PH5: 30114 | PI5: 30115 | PJ5: 30116 | PK5: 30117 | PL5: 30118 | PM5: 30119 | PN5: 30120 | PO5: 30121 | PP5: 30122 | PQ5: =10000+NE5 -> 30201 | PR5: 30202 | PS5: 30203 | PT5: 30204 | PU5: 30205 | PV5: 30206 | PW5: 30207 | PX5: 30208 | PY5: 30209 | PZ5: 30210 | QA5: 30211 | QB5: 30212 | QC5: 30213 | QD5: 30214 | QE5: 30215 | QF5: 30216 | QG5: 30217 | QH5: 30218 | QI5: 30219 | QJ5: 30220 | QK5: 30221 | QL5: 30222 | QM5: 30301 | QN5: 30302 | QO5: 30303 | QP5: 30304 | QQ5: 30305 | QR5: 30306 | QS5: 30307 | QT5: 30308 | QU5: 30309 | QV5: 30310 | QW5: 30311 | QX5: 30312 | QY5: 30313 | QZ5: 30314 | RA5: 30315 | RB5: 30401 | RC5: 30402 | RD5: 30403 | RE5: 30404 | RF5: 30405 | RG5: 40101 | RH5: 40102 | RI5: 40103 | RJ5: 40104 | RK5: 40105 | RL5: 40106 | RM5: 40107 | RN5: 40108 | RO5: 40109 | RP5: 40110 | RQ5: 40111 | RR5: 40112 | RS5: 40113 | RT5: 40114 | RU5: 40115 | RV5: 40116 | RW5: 40117 | RX5: 40118 | RY5: 40119 | RZ5: 40120 | SA5: 40121 | SB5: 40122 | SC5: =10000+PQ5 -> 40201 | SD5: 40202 | SE5: 40203 | SF5: 40204 | SG5: 40205 | SH5: 40206 | SI5: 40207 | SJ5: 40208 | SK5: 40209 | SL5: 40210 | SM5: 40211 | SN5: 40212 | SO5: 40213 | SP5: 40214 | SQ5: 40215 | SR5: 40216 | SS5: 40217 | ST5: 40218 | SU5: 40219 | SV5: 40220 | SW5: 40221 | SX5: 40222 | SY5: 40301 | SZ5: 40302 | TA5: 40303 | TB5: 40304 | TC5: 40305 | TD5: 40306 | TE5: 40307 | TF5: 40308 | TG5: 40309 | TH5: 40310 | TI5: 40311 | TJ5: 40312 | TK5: 40313 | TL5: 40314 | TM5: 40315 | TN5: 40401 | TO5: 40402 | TP5: 40403 | TQ5: 40404 | TR5: 40405 | TS5: 50101 | TT5: 50102 | TU5: 50103 | TV5: 50104 | TW5: 50105 | TX5: 50106 | TY5: 50107 | TZ5: 50108 | UA5: 50109 | UB5: 50110 | UC5: 50111 | UD5: 50112 | UE5: 50113 | UF5: 50114 | UG5: 50115 | UH5: 50116 | UI5: 50117 | UJ5: 50118 | UK5: 50119 | UL5: 50120 | UM5: 50121 | UN5: 50122 | UO5: =10000+SC5 -> 50201 | UP5: 50202 | UQ5: 50203 | UR5: 50204 | US5: 50205 | UT5: 50206 | UU5: 50207 | UV5: 50208 | UW5: 50209 | UX5: 50210 | UY5: 50211 | UZ5: 50212 | VA5: 50213 | VB5: 50214 | VC5: 50215 | VD5: 50216 | VE5: 50217 | VF5: 50218 | VG5: 50219 | VH5: 50220 | VI5: 50221 | VJ5: 50222 | VK5: 50301 | VL5: 50302 | VM5: 50303 | VN5: 50304 | VO5: 50305 | VP5: 50306 | VQ5: 50307 | VR5: 50308 | VS5: 50309 | VT5: 50310 | VU5: 50311 | VV5: 50312 | VW5: 50313 | VX5: 50314 | VY5: 50315 | VZ5: 50401 | WA5: 50402 | WB5: 50403 | WC5: 50404 | WD5: 50405 | WE5: 60101 | WF5: 60102 | WG5: 60103 | WH5: 60104 | WI5: 60105 | WJ5: 60106 | WK5: 60107 | WL5: 60108 | WM5: 60109 | WN5: 60110 | WO5: 60111 | WP5: 60112 | WQ5: 60113 | WR5: 60114 | WS5: 60115 | WT5: 60116 | WU5: 60117 | WV5: 60118 | WW5: 60119 | WX5: 60120 | WY5: 60121 | WZ5: 60122 | XA5: =10000+UO5 -> 60201 | XB5: 60202 | XC5: 60203 | XD5: 60204 | XE5: 60205 | XF5: 60206 | XG5: 60207 | XH5: 60208 | XI5: 60209 | XJ5: 60210 | XK5: 60211 | XL5: 60212 | XM5: 60213 | XN5: 60214 | XO5: 60215 | XP5: 60216 | XQ5: 60217 | XR5: 60218 | XS5: 60219 | XT5: 60220 | XU5: 60221 | XV5: 60222 | XW5: 60301 | XX5: 60302 | XY5: 60303 | XZ5: 60304 | YA5: 60305 | YB5: 60306 | YC5: 60307 | YD5: 60308 | YE5: 60309 | YF5: 60310 | YG5: 60311 | YH5: 60312 | YI5: 60313 | YJ5: 60314 | YK5: 60315 | YL5: 60401 | YM5: 60402 | YN5: 60403 | YO5: 60404 | YP5: 60405 | YQ5: 70101 | YR5: 70102 | YS5: 70103 | YT5: 70104 | YU5: 70105 | YV5: 70106 | YW5: 70107 | YX5: 70108 | YY5: 70109 | YZ5: 70110 | ZA5: 70111 | ZB5: 70112 | ZC5: 70113 | ZD5: 70114 | ZE5: 70115 | ZF5: 70116 | ZG5: 70117 | ZH5: 70118 | ZI5: 70119 | ZJ5: 70120 | ZK5: 70121 | ZL5: 70122 | ZM5: =10000+XA5 -> 70201 | ZN5: 70202 | ZO5: 70203 | ZP5: 70204 | ZQ5: 70205 | ZR5: 70206 | ZS5: 70207 | ZT5: 70208 | ZU5: 70209 | ZV5: 70210 | ZW5: 70211 | ZX5: 70212 | ZY5: 70213 | ZZ5: 70214 | AAA5: 70215 | AAB5: 70216 | AAC5: 70217 | AAD5: 70218 | AAE5: 70219 | AAF5: 70220 | AAG5: 70221 | AAH5: 70222 | AAI5: 70301 | AAJ5: 70302 | AAK5: 70303 | AAL5: 70304 | AAM5: 70305 | AAN5: 70306 | AAO5: 70307 | AAP5: 70308 | AAQ5: 70309 | AAR5: 70310 | AAS5: 70311 | AAT5: 70312 | AAU5: 70313 | AAV5: 70314 | AAW5: 70315 | AAX5: 70401 | AAY5: 70402 | AAZ5: 70403 | ABA5: 70404 | ABB5: 70405
